Workbook

Sheet Eingabe Investitionsrechnung
A1: Investitionsberechnung Energieprojekt
A5: Der Wirtschaftlichkeitsrechner Energieeffizienzmaßnahmen liefert Ihnen die betriebswirtschaftlichen Kennzahlen, die Sie für Ihre Investitionsentscheidung benötigen. Tragen Sie in diesem Blatt oben in die weißen Felder die gefragten Daten ein. Unten erhalten Sie die Ergebnisse. Auf den weiteren Tabellenblättern finden Sie die Berechnungstabelle für die einzelnen Jahre, eine Vorlage zur Berechnung des eigenen Zinssatzes (Kapitalstruktur) sowie Übersichtgrafiken, die Barwert und Energiekosten der Altanlage der Neuinvestition gegenüberstellen. | F5: Weiße Felder bitte ausfüllen
F7: Hellblaue Felder werden berechnet
A9: Eingabe
A11: Altanlage | B11: Bitte eintragen, z.B. alte Kesselanlage mit Öl befeuert
A12: Neuinvestition | B12: Bitte eintragen, z.B. Wärmepumpe mit Strom
B14: Einheit | C14: IST / ALT | D14: Neuinvestition
A15: Startjahr Investition | B15: - | C15: 2023
A16: Nutzungsdauer in Jahren (Max 30 Jahre) | B16: a | D16: 20
A17: Kalkulatorischer Zinssatz | B17: % | C17: 0.021
A18: Investitionssumme | B18: € | D18: 15000
A19: Sonstige Erträge o. Einsparungen im Jahr | B19: €/a | C19: 0 | D19: 0 | H19: Referenz-Energiepreise
A20: (statische) Energiekosteneinsparung pro Jahr (berechnet) | B20: €/a | D20: =($C$21*$C$22)/100-(($D$21*$D$22)/100) -> 1000 | H20: Sekundärenergieträger | I20: - | J20: 1 | K20: Dropdown, bitte wählen
A21: Energieverbrauch pro Jahr | B21: kWh/a | C21: 20000 | D21: 20000 | H21: Referenz-Energiepreis | I21: ct./kWh | J21: =VLOOKUP(J20,Quelle!A7:C19,3,FALSE) -> 8.37
A22: Aktueller Energiepreis | B22: ct./kWh | C22: 15 | D22: 10
A23: angenommene Steigerung Energiepreis pro Jahr | B23: % | C23: 0.0553 | D23: 0.0177 | H23: Referenz Energiepreissteigerung
A24: Zuschüsse / Förderungen | B24: € | C24: 0 | D24: 3000 | H24: Sekundärenergieträger | I24: - | J24: 1 | K24: Dropdown, bitte wählen
A25: Betriebskosten pro Jahr | B25: €/a | C25: 200 | D25: 150 | H25: konservative Prognose Energiepreissteigerung | I25: % | J25: =VLOOKUP('Eingabe Investitionsrechnung'!J24,Prognosen_Nominal!A7:M22,13,FALSE) -> 0.08234116977
A26: Wartungs- und Instandhaltungskosten pro Jahr | B26: €/a | C26: 250 | D26: 50
A27: Sonstige Kosten pro Jahr (z.B. Personal) | B27: €/a | C27: 200 | D27: 150
A28: Gesamtnebenkosten pro Jahr | B28: €/a | C28: =SUM(C25:C27) -> 650 | D28: =SUM(D25:D27) -> 350
A29: Sonstige Einmalkosten (z.B. Anmeldekosten) | B29: € | D29: 200
D31: Weiße Felder bitte ausfüllen | E31: Hellblaue Felder werden berechnet
A36: Projektkennzahlen-Cockpit
A38: Kennzahl | B38: Ist | C38: Vorschlag optimaler Wert | D38: Wie nah am Optimum?
A39: Interner Zinsfuß | B39: =E50 -> 0.1822846038 | C39: 0.24 | D39: =B39/C39 -> 0.7595191825 | E39: =D39 -> 0.7595191825
A40: ROI (Return on Invest) | B40: =E51 -> 3.313291572 | C40: 4 | D40: =B40/C40 -> 0.8283228931 | E40: =D40 -> 0.8283228931
A41: Break-Even-Koeffizient | B41: =E52 -> 0.3514977749 | C41: 0.01 | D41: =IF(B41>1,"Projekt nicht rentabel",1-B41) -> 0.6485022251 | E41: 0.6485022251
A46: Projektkennzahlen der Neuinvestition
A49: Kennzahl | D49: Einheit | E49: Wert
A50: Interne Verzinsung pro Jahr (Rendite) | D50: % | E50: =IF($D$16<3,"Nutzungsdauer zu gering",IRR('Berechnungstabelle - Neuinves'!$B$12:'Berechnungstabelle - Neuinves'!$AF$12)) -> 0.1822846038
A51: ROI (Return on Invest) | D51: - | E51: ='Berechnungstabelle - Neuinves'!AF15/(-'Berechnungstabelle - Neuinves'!B12) -> 3.313291572
A52: Break-Even-Quotient | D52: - | E52: =IF(SUM('Berechnungstabelle - Neuinves'!$B$16:'Berechnungstabelle - Neuinves'!$AF$17)>'Eingabe Investitionsrechnung'!$D$16,"Projekt nicht rentabel",SUM('Berechnungstabelle - Neuinves'!$B$16:'Berechnungstabelle - Neuinves'!$AF$17)/'Eingabe Investitionsrechnung'!D16) -> 0.3514977749
A54: dynamische Berechnung
A55: ="Kapitalwert bei"&" " & $C$17*100&"%" -> Kapitalwert bei 2,1% | D55: € | E55: =MAX('Berechnungstabelle - Neuinves'!$B$15:'Berechnungstabelle - Neuinves'!$AF$15) -> 40422.15718
A57: ="Dynamische Amortisationszeit bei" &" " &$C$17*100&" %" -> Dynamische Amortisationszeit bei 2,1 % | D57: Jahre | E57: =IF(SUM('Berechnungstabelle - Neuinves'!$B$16:'Berechnungstabelle - Neuinves'!$AF$17)>=20,"nicht in Nutzungsdauer",SUM('Berechnungstabelle - Neuinves'!$B$16:'Berechnungstabelle - Neuinves'!$AF$17)) -> 7.029955498
A58: Durchschnittliche Energiekosteneinsparung | D58: € | E58: =SUM('Berechnungstabelle - Neuinves'!$C$9:'Berechnungstabelle - Neuinves'!$AF$9)/'Eingabe Investitionsrechnung'!$D$16 -> 3120.2697
A59: statische Berechnung
A60: Jährliche Annuität | D60: € | E60: =PMT($C$17,$D$16,'Berechnungstabelle - Neuinves'!$B$14) -> 753.3315112
A61: Statische Amortisationszeit | D61: a | E61: =IF(($D$18-$D$24+SUM($C$29:$D$29)+SUM('Berechnungstabelle - Neuinves'!$C$11:$AF$11))/('Eingabe Investitionsrechnung'!$D$20+-'Eingabe Investitionsrechnung'!$D$28+'Eingabe Investitionsrechnung'!$C$28)>'Eingabe Investitionsrechnung'!$D$16,"nicht in Nutzungsdauer",($D$18-$D$24+SUM($C$29:$D$29)+SUM('Berechnungstabelle - Neuinves'!$C$11:$AF$11))/('Eingabe Investitionsrechnung'!$D$20+-'Eingabe Investitionsrechnung'!$D$28+'Eingabe Investitionsrechnung'!$C$28)) -> 9.384615385
A62: Durchschnittliche Kosteneinsparung EK + NK | D62: € | E62: =($D$20+($C$28-$D$28)-SUM('Berechnungstabelle - Neuinves'!$B$11:$AF$11)/'Eingabe Investitionsrechnung'!D16) -> 1290
A63: Kosteneinsparquote | D63: % | E63: =E62/-('Berechnungstabelle - Neuinves'!B12) -> 0.1057377049

Sheet Berechnungstabelle - Neuinves
A1: Berechnungstabelle - Neuinvestition
B2: Investition | C2: Jahr | D2: Jahr | E2: Jahr | F2: Jahr | G2: Jahr | H2: Jahr | I2: Jahr | J2: Jahr | K2: Jahr | L2: Jahr | M2: Jahr | N2: Jahr | O2: Jahr | P2: Jahr | Q2: Jahr | R2: Jahr | S2: Jahr | T2: Jahr | U2: Jahr | V2: Jahr | W2: Jahr | X2: Jahr | Y2: Jahr | Z2: Jahr | AA2: Jahr | AB2: Jahr | AC2: Jahr | AD2: Jahr | AE2: Jahr | AF2: Jahr
B3: 31.12. | C3: 1 | D3: 2 | E3: 3 | F3: 4 | G3: 5 | H3: 6 | I3: 7 | J3: 8 | K3: 9 | L3: 10 | M3: 11 | N3: 12 | O3: 13 | P3: 14 | Q3: 15 | R3: 16 | S3: 17 | T3: 18 | U3: 19 | V3: 20 | W3: 21 | X3: 22 | Y3: 23 | Z3: 24 | AA3: 25 | AB3: 26 | AC3: 27 | AD3: 28 | AE3: 29 | AF3: 30
A4: Kalenderjahr | B4: ='Eingabe Investitionsrechnung'!C15 -> 2023 | C4: =B4+1 -> 2024 | D4: =C4+1 -> 2025 | E4: 2026 | F4: 2027 | G4: 2028 | H4: 2029 | I4: 2030 | J4: 2031 | K4: 2032 | L4: 2033 | M4: 2034 | N4: 2035 | O4: 2036 | P4: 2037 | Q4: 2038 | R4: 2039 | S4: 2040 | T4: 2041 | U4: 2042 | V4: 2043 | W4: 2044 | X4: 2045 | Y4: 2046 | Z4: 2047 | AA4: 2048 | AB4: 2049 | AC4: 2050 | AD4: 2051 | AE4: 2052 | AF4: 2053
A5: Investition abzgl. Förderung | B5: ='Eingabe Investitionsrechnung'!D18-'Eingabe Investitionsrechnung'!D24 -> 12000 | C5: 0 | D5: 0 | E5: 0 | F5: 0 | G5: 0 | H5: 0 | I5: 0 | J5: 0 | K5: 0 | L5: 0 | M5: 0 | N5: 0 | O5: 0 | P5: 0 | Q5: 0 | R5: 0 | S5: 0 | T5: 0 | U5: 0 | V5: 0 | W5: 0 | X5: 0 | Y5: 0 | Z5: 0 | AA5: 0 | AB5: 0 | AC5: 0 | AD5: 0 | AE5: 0 | AF5: 0
A6: Jährliche Energiekosten nach Nutzungsdauer - Neuinvestition | B6: 0 | C6: ='Eingabe Investitionsrechnung'!$D$21*'Eingabe Investitionsrechnung'!$D$22/100*((1+'Eingabe Investitionsrechnung'!$D$23)^'Berechnungstabelle - Neuinves'!C$3)*'Berechnungstabelle - Neuinves'!C19 -> 2035.4 | D6: ='Eingabe Investitionsrechnung'!$D$21*'Eingabe Investitionsrechnung'!$D$22/100*((1+'Eingabe Investitionsrechnung'!$D$23)^'Berechnungstabelle - Neuinves'!D$3)*'Berechnungstabelle - Neuinves'!D19 -> 2071.42658 | E6: ='Eingabe Investitionsrechnung'!$D$21*'Eingabe Investitionsrechnung'!$D$22/100*((1+'Eingabe Investitionsrechnung'!$D$23)^'Berechnungstabelle - Neuinves'!E$3)*'Berechnungstabelle - Neuinves'!E19 -> 2108.09083 | F6: ='Eingabe Investitionsrechnung'!$D$21*'Eingabe Investitionsrechnung'!$D$22/100*((1+'Eingabe Investitionsrechnung'!$D$23)^'Berechnungstabelle - Neuinves'!F$3)*'Berechnungstabelle - Neuinves'!F19 -> 2145.404038 | G6: ='Eingabe Investitionsrechnung'!$D$21*'Eingabe Investitionsrechnung'!$D$22/100*((1+'Eingabe Investitionsrechnung'!$D$23)^'Berechnungstabelle - Neuinves'!G$3)*'Berechnungstabelle - Neuinves'!G19 -> 2183.37769 | H6: ='Eingabe Investitionsrechnung'!$D$21*'Eingabe Investitionsrechnung'!$D$22/100*((1+'Eingabe Investitionsrechnung'!$D$23)^'Berechnungstabelle - Neuinves'!H$3)*'Berechnungstabelle - Neuinves'!H19 -> 2222.023475 | I6: ='Eingabe Investitionsrechnung'!$D$21*'Eingabe Investitionsrechnung'!$D$22/100*((1+'Eingabe Investitionsrechnung'!$D$23)^'Berechnungstabelle - Neuinves'!I$3)*'Berechnungstabelle - Neuinves'!I19 -> 2261.35329 | J6: ='Eingabe Investitionsrechnung'!$D$21*'Eingabe Investitionsrechnung'!$D$22/100*((1+'Eingabe Investitionsrechnung'!$D$23)^'Berechnungstabelle - Neuinves'!J$3)*'Berechnungstabelle - Neuinves'!J19 -> 2301.379243 | K6: ='Eingabe Investitionsrechnung'!$D$21*'Eingabe Investitionsrechnung'!$D$22/100*((1+'Eingabe Investitionsrechnung'!$D$23)^'Berechnungstabelle - Neuinves'!K$3)*'Berechnungstabelle - Neuinves'!K19 -> 2342.113656 | L6: ='Eingabe Investitionsrechnung'!$D$21*'Eingabe Investitionsrechnung'!$D$22/100*((1+'Eingabe Investitionsrechnung'!$D$23)^'Berechnungstabelle - Neuinves'!L$3)*'Berechnungstabelle - Neuinves'!L19 -> 2383.569068 | M6: ='Eingabe Investitionsrechnung'!$D$21*'Eingabe Investitionsrechnung'!$D$22/100*((1+'Eingabe Investitionsrechnung'!$D$23)^'Berechnungstabelle - Neuinves'!M$3)*'Berechnungstabelle - Neuinves'!M19 -> 2425.75824 | N6: ='Eingabe Investitionsrechnung'!$D$21*'Eingabe Investitionsrechnung'!$D$22/100*((1+'Eingabe Investitionsrechnung'!$D$23)^'Berechnungstabelle - Neuinves'!N$3)*'Berechnungstabelle - Neuinves'!N19 -> 2468.694161 | O6: ='Eingabe Investitionsrechnung'!$D$21*'Eingabe Investitionsrechnung'!$D$22/100*((1+'Eingabe Investitionsrechnung'!$D$23)^'Berechnungstabelle - Neuinves'!O$3)*'Berechnungstabelle - Neuinves'!O19 -> 2512.390048 | P6: ='Eingabe Investitionsrechnung'!$D$21*'Eingabe Investitionsrechnung'!$D$22/100*((1+'Eingabe Investitionsrechnung'!$D$23)^'Berechnungstabelle - Neuinves'!P$3)*'Berechnungstabelle - Neuinves'!P19 -> 2556.859352 | Q6: ='Eingabe Investitionsrechnung'!$D$21*'Eingabe Investitionsrechnung'!$D$22/100*((1+'Eingabe Investitionsrechnung'!$D$23)^'Berechnungstabelle - Neuinves'!Q$3)*'Berechnungstabelle - Neuinves'!Q19 -> 2602.115762 | R6: ='Eingabe Investitionsrechnung'!$D$21*'Eingabe Investitionsrechnung'!$D$22/100*((1+'Eingabe Investitionsrechnung'!$D$23)^'Berechnungstabelle - Neuinves'!R$3)*'Berechnungstabelle - Neuinves'!R19 -> 2648.173211 | S6: ='Eingabe Investitionsrechnung'!$D$21*'Eingabe Investitionsrechnung'!$D$22/100*((1+'Eingabe Investitionsrechnung'!$D$23)^'Berechnungstabelle - Neuinves'!S$3)*'Berechnungstabelle - Neuinves'!S19 -> 2695.045877 | T6: ='Eingabe Investitionsrechnung'!$D$21*'Eingabe Investitionsrechnung'!$D$22/100*((1+'Eingabe Investitionsrechnung'!$D$23)^'Berechnungstabelle - Neuinves'!T$3)*'Berechnungstabelle - Neuinves'!T19 -> 2742.748189 | U6: ='Eingabe Investitionsrechnung'!$D$21*'Eingabe Investitionsrechnung'!$D$22/100*((1+'Eingabe Investitionsrechnung'!$D$23)^'Berechnungstabelle - Neuinves'!U$3)*'Berechnungstabelle - Neuinves'!U19 -> 2791.294832 | V6: ='Eingabe Investitionsrechnung'!$D$21*'Eingabe Investitionsrechnung'!$D$22/100*((1+'Eingabe Investitionsrechnung'!$D$23)^'Berechnungstabelle - Neuinves'!V$3)*'Berechnungstabelle - Neuinves'!V19 -> 2840.700751 | W6: ='Eingabe Investitionsrechnung'!$D$21*'Eingabe Investitionsrechnung'!$D$22/100*((1+'Eingabe Investitionsrechnung'!$D$23)^'Berechnungstabelle - Neuinves'!W$3)*'Berechnungstabelle - Neuinves'!W19 -> 0 | X6: ='Eingabe Investitionsrechnung'!$D$21*'Eingabe Investitionsrechnung'!$D$22/100*((1+'Eingabe Investitionsrechnung'!$D$23)^'Berechnungstabelle - Neuinves'!X$3)*'Berechnungstabelle - Neuinves'!X19 -> 0 | Y6: ='Eingabe Investitionsrechnung'!$D$21*'Eingabe Investitionsrechnung'!$D$22/100*((1+'Eingabe Investitionsrechnung'!$D$23)^'Berechnungstabelle - Neuinves'!Y$3)*'Berechnungstabelle - Neuinves'!Y19 -> 0 | Z6: ='Eingabe Investitionsrechnung'!$D$21*'Eingabe Investitionsrechnung'!$D$22/100*((1+'Eingabe Investitionsrechnung'!$D$23)^'Berechnungstabelle - Neuinves'!Z$3)*'Berechnungstabelle - Neuinves'!Z19 -> 0 | AA6: ='Eingabe Investitionsrechnung'!$D$21*'Eingabe Investitionsrechnung'!$D$22/100*((1+'Eingabe Investitionsrechnung'!$D$23)^'Berechnungstabelle - Neuinves'!AA$3)*'Berechnungstabelle - Neuinves'!AA19 -> 0 | AB6: ='Eingabe Investitionsrechnung'!$D$21*'Eingabe Investitionsrechnung'!$D$22/100*((1+'Eingabe Investitionsrechnung'!$D$23)^'Berechnungstabelle - Neuinves'!AB$3)*'Berechnungstabelle - Neuinves'!AB19 -> 0 | AC6: ='Eingabe Investitionsrechnung'!$D$21*'Eingabe Investitionsrechnung'!$D$22/100*((1+'Eingabe Investitionsrechnung'!$D$23)^'Berechnungstabelle - Neuinves'!AC$3)*'Berechnungstabelle - Neuinves'!AC19 -> 0 | AD6: ='Eingabe Investitionsrechnung'!$D$21*'Eingabe Investitionsrechnung'!$D$22/100*((1+'Eingabe Investitionsrechnung'!$D$23)^'Berechnungstabelle - Neuinves'!AD$3)*'Berechnungstabelle - Neuinves'!AD19 -> 0 | AE6: ='Eingabe Investitionsrechnung'!$D$21*'Eingabe Investitionsrechnung'!$D$22/100*((1+'Eingabe Investitionsrechnung'!$D$23)^'Berechnungstabelle - Neuinves'!AE$3)*'Berechnungstabelle - Neuinves'!AE19 -> 0 | AF6: ='Eingabe Investitionsrechnung'!$D$21*'Eingabe Investitionsrechnung'!$D$22/100*((1+'Eingabe Investitionsrechnung'!$D$23)^'Berechnungstabelle - Neuinves'!AF$3)*'Berechnungstabelle - Neuinves'!AF19 -> 0
A7: jährlicher Kostenvorteil Nebenkosten & sonst. Erträge | B7: 0 | C7: ='Eingabe Investitionsrechnung'!$C$28-'Eingabe Investitionsrechnung'!$D$28+('Eingabe Investitionsrechnung'!$C$19-'Eingabe Investitionsrechnung'!$D$19) -> 300 | D7: ='Eingabe Investitionsrechnung'!$C$28-'Eingabe Investitionsrechnung'!$D$28+('Eingabe Investitionsrechnung'!$C$19-'Eingabe Investitionsrechnung'!$D$19) -> 300 | E7: ='Eingabe Investitionsrechnung'!$C$28-'Eingabe Investitionsrechnung'!$D$28+('Eingabe Investitionsrechnung'!$C$19-'Eingabe Investitionsrechnung'!$D$19) -> 300 | F7: ='Eingabe Investitionsrechnung'!$C$28-'Eingabe Investitionsrechnung'!$D$28+('Eingabe Investitionsrechnung'!$C$19-'Eingabe Investitionsrechnung'!$D$19) -> 300 | G7: ='Eingabe Investitionsrechnung'!$C$28-'Eingabe Investitionsrechnung'!$D$28+('Eingabe Investitionsrechnung'!$C$19-'Eingabe Investitionsrechnung'!$D$19) -> 300 | H7: ='Eingabe Investitionsrechnung'!$C$28-'Eingabe Investitionsrechnung'!$D$28+('Eingabe Investitionsrechnung'!$C$19-'Eingabe Investitionsrechnung'!$D$19) -> 300 | I7: ='Eingabe Investitionsrechnung'!$C$28-'Eingabe Investitionsrechnung'!$D$28+('Eingabe Investitionsrechnung'!$C$19-'Eingabe Investitionsrechnung'!$D$19) -> 300 | J7: ='Eingabe Investitionsrechnung'!$C$28-'Eingabe Investitionsrechnung'!$D$28+('Eingabe Investitionsrechnung'!$C$19-'Eingabe Investitionsrechnung'!$D$19) -> 300 | K7: ='Eingabe Investitionsrechnung'!$C$28-'Eingabe Investitionsrechnung'!$D$28+('Eingabe Investitionsrechnung'!$C$19-'Eingabe Investitionsrechnung'!$D$19) -> 300 | L7: ='Eingabe Investitionsrechnung'!$C$28-'Eingabe Investitionsrechnung'!$D$28+('Eingabe Investitionsrechnung'!$C$19-'Eingabe Investitionsrechnung'!$D$19) -> 300 | M7: ='Eingabe Investitionsrechnung'!$C$28-'Eingabe Investitionsrechnung'!$D$28+('Eingabe Investitionsrechnung'!$C$19-'Eingabe Investitionsrechnung'!$D$19) -> 300 | N7: ='Eingabe Investitionsrechnung'!$C$28-'Eingabe Investitionsrechnung'!$D$28+('Eingabe Investitionsrechnung'!$C$19-'Eingabe Investitionsrechnung'!$D$19) -> 300 | O7: ='Eingabe Investitionsrechnung'!$C$28-'Eingabe Investitionsrechnung'!$D$28+('Eingabe Investitionsrechnung'!$C$19-'Eingabe Investitionsrechnung'!$D$19) -> 300 | P7: ='Eingabe Investitionsrechnung'!$C$28-'Eingabe Investitionsrechnung'!$D$28+('Eingabe Investitionsrechnung'!$C$19-'Eingabe Investitionsrechnung'!$D$19) -> 300 | Q7: ='Eingabe Investitionsrechnung'!$C$28-'Eingabe Investitionsrechnung'!$D$28+('Eingabe Investitionsrechnung'!$C$19-'Eingabe Investitionsrechnung'!$D$19) -> 300 | R7: ='Eingabe Investitionsrechnung'!$C$28-'Eingabe Investitionsrechnung'!$D$28+('Eingabe Investitionsrechnung'!$C$19-'Eingabe Investitionsrechnung'!$D$19) -> 300 | S7: ='Eingabe Investitionsrechnung'!$C$28-'Eingabe Investitionsrechnung'!$D$28+('Eingabe Investitionsrechnung'!$C$19-'Eingabe Investitionsrechnung'!$D$19) -> 300 | T7: ='Eingabe Investitionsrechnung'!$C$28-'Eingabe Investitionsrechnung'!$D$28+('Eingabe Investitionsrechnung'!$C$19-'Eingabe Investitionsrechnung'!$D$19) -> 300 | U7: ='Eingabe Investitionsrechnung'!$C$28-'Eingabe Investitionsrechnung'!$D$28+('Eingabe Investitionsrechnung'!$C$19-'Eingabe Investitionsrechnung'!$D$19) -> 300 | V7: ='Eingabe Investitionsrechnung'!$C$28-'Eingabe Investitionsrechnung'!$D$28+('Eingabe Investitionsrechnung'!$C$19-'Eingabe Investitionsrechnung'!$D$19) -> 300 | W7: ='Eingabe Investitionsrechnung'!$C$28-'Eingabe Investitionsrechnung'!$D$28+('Eingabe Investitionsrechnung'!$C$19-'Eingabe Investitionsrechnung'!$D$19) -> 300 | X7: ='Eingabe Investitionsrechnung'!$C$28-'Eingabe Investitionsrechnung'!$D$28+('Eingabe Investitionsrechnung'!$C$19-'Eingabe Investitionsrechnung'!$D$19) -> 300 | Y7: ='Eingabe Investitionsrechnung'!$C$28-'Eingabe Investitionsrechnung'!$D$28+('Eingabe Investitionsrechnung'!$C$19-'Eingabe Investitionsrechnung'!$D$19) -> 300 | Z7: ='Eingabe Investitionsrechnung'!$C$28-'Eingabe Investitionsrechnung'!$D$28+('Eingabe Investitionsrechnung'!$C$19-'Eingabe Investitionsrechnung'!$D$19) -> 300 | AA7: ='Eingabe Investitionsrechnung'!$C$28-'Eingabe Investitionsrechnung'!$D$28+('Eingabe Investitionsrechnung'!$C$19-'Eingabe Investitionsrechnung'!$D$19) -> 300 | AB7: ='Eingabe Investitionsrechnung'!$C$28-'Eingabe Investitionsrechnung'!$D$28+('Eingabe Investitionsrechnung'!$C$19-'Eingabe Investitionsrechnung'!$D$19) -> 300 | AC7: ='Eingabe Investitionsrechnung'!$C$28-'Eingabe Investitionsrechnung'!$D$28+('Eingabe Investitionsrechnung'!$C$19-'Eingabe Investitionsrechnung'!$D$19) -> 300 | AD7: ='Eingabe Investitionsrechnung'!$C$28-'Eingabe Investitionsrechnung'!$D$28+('Eingabe Investitionsrechnung'!$C$19-'Eingabe Investitionsrechnung'!$D$19) -> 300 | AE7: ='Eingabe Investitionsrechnung'!$C$28-'Eingabe Investitionsrechnung'!$D$28+('Eingabe Investitionsrechnung'!$C$19-'Eingabe Investitionsrechnung'!$D$19) -> 300 | AF7: ='Eingabe Investitionsrechnung'!$C$28-'Eingabe Investitionsrechnung'!$D$28+('Eingabe Investitionsrechnung'!$C$19-'Eingabe Investitionsrechnung'!$D$19) -> 300
A8: jährliche Einsparung Energiekosten | B8: 0 | C8: =('Eingabe Investitionsrechnung'!$C$21*'Eingabe Investitionsrechnung'!$C$22)/100*((1+'Eingabe Investitionsrechnung'!$C$23)^'Berechnungstabelle - Neuinves'!C$3)-((('Eingabe Investitionsrechnung'!$D$21*'Eingabe Investitionsrechnung'!$D$22/100*((1+'Eingabe Investitionsrechnung'!$D$23)^'Berechnungstabelle - Neuinves'!C$3)))) -> 1130.5 | D8: =('Eingabe Investitionsrechnung'!$C$21*'Eingabe Investitionsrechnung'!$C$22)/100*((1+'Eingabe Investitionsrechnung'!$C$23)^'Berechnungstabelle - Neuinves'!D$3)-((('Eingabe Investitionsrechnung'!$D$21*'Eingabe Investitionsrechnung'!$D$22)/100*((1+'Eingabe Investitionsrechnung'!$D$23)^'Berechnungstabelle - Neuinves'!D$3)))+('Eingabe Investitionsrechnung'!$D$19-'Eingabe Investitionsrechnung'!$C$19) -> 1269.54769 | E8: =('Eingabe Investitionsrechnung'!$C$21*'Eingabe Investitionsrechnung'!$C$22)/100*((1+'Eingabe Investitionsrechnung'!$C$23)^'Berechnungstabelle - Neuinves'!E$3)-((('Eingabe Investitionsrechnung'!$D$21*'Eingabe Investitionsrechnung'!$D$22)/100*((1+'Eingabe Investitionsrechnung'!$D$23)^'Berechnungstabelle - Neuinves'!E$3)))+('Eingabe Investitionsrechnung'!$D$19-'Eingabe Investitionsrechnung'!$C$19) -> 1417.639317 | F8: =('Eingabe Investitionsrechnung'!$C$21*'Eingabe Investitionsrechnung'!$C$22)/100*((1+'Eingabe Investitionsrechnung'!$C$23)^'Berechnungstabelle - Neuinves'!F$3)-((('Eingabe Investitionsrechnung'!$D$21*'Eingabe Investitionsrechnung'!$D$22)/100*((1+'Eingabe Investitionsrechnung'!$D$23)^'Berechnungstabelle - Neuinves'!F$3)))+('Eingabe Investitionsrechnung'!$D$19-'Eingabe Investitionsrechnung'!$C$19) -> 1575.298986 | G8: =('Eingabe Investitionsrechnung'!$C$21*'Eingabe Investitionsrechnung'!$C$22)/100*((1+'Eingabe Investitionsrechnung'!$C$23)^'Berechnungstabelle - Neuinves'!G$3)-((('Eingabe Investitionsrechnung'!$D$21*'Eingabe Investitionsrechnung'!$D$22)/100*((1+'Eingabe Investitionsrechnung'!$D$23)^'Berechnungstabelle - Neuinves'!G$3)))+('Eingabe Investitionsrechnung'!$D$19-'Eingabe Investitionsrechnung'!$C$19) -> 1743.080212 | H8: =('Eingabe Investitionsrechnung'!$C$21*'Eingabe Investitionsrechnung'!$C$22)/100*((1+'Eingabe Investitionsrechnung'!$C$23)^'Berechnungstabelle - Neuinves'!H$3)-((('Eingabe Investitionsrechnung'!$D$21*'Eingabe Investitionsrechnung'!$D$22)/100*((1+'Eingabe Investitionsrechnung'!$D$23)^'Berechnungstabelle - Neuinves'!H$3)))+('Eingabe Investitionsrechnung'!$D$19-'Eingabe Investitionsrechnung'!$C$19) -> 1921.567549 | I8: =('Eingabe Investitionsrechnung'!$C$21*'Eingabe Investitionsrechnung'!$C$22)/100*((1+'Eingabe Investitionsrechnung'!$C$23)^'Berechnungstabelle - Neuinves'!I$3)-((('Eingabe Investitionsrechnung'!$D$21*'Eingabe Investitionsrechnung'!$D$22)/100*((1+'Eingabe Investitionsrechnung'!$D$23)^'Berechnungstabelle - Neuinves'!I$3)))+('Eingabe Investitionsrechnung'!$D$19-'Eingabe Investitionsrechnung'!$C$19) -> 2111.378317 | J8: =('Eingabe Investitionsrechnung'!$C$21*'Eingabe Investitionsrechnung'!$C$22)/100*((1+'Eingabe Investitionsrechnung'!$C$23)^'Berechnungstabelle - Neuinves'!J$3)-((('Eingabe Investitionsrechnung'!$D$21*'Eingabe Investitionsrechnung'!$D$22)/100*((1+'Eingabe Investitionsrechnung'!$D$23)^'Berechnungstabelle - Neuinves'!J$3)))+('Eingabe Investitionsrechnung'!$D$19-'Eingabe Investitionsrechnung'!$C$19) -> 2313.164421 | K8: =('Eingabe Investitionsrechnung'!$C$21*'Eingabe Investitionsrechnung'!$C$22)/100*((1+'Eingabe Investitionsrechnung'!$C$23)^'Berechnungstabelle - Neuinves'!K$3)-((('Eingabe Investitionsrechnung'!$D$21*'Eingabe Investitionsrechnung'!$D$22)/100*((1+'Eingabe Investitionsrechnung'!$D$23)^'Berechnungstabelle - Neuinves'!K$3)))+('Eingabe Investitionsrechnung'!$D$19-'Eingabe Investitionsrechnung'!$C$19) -> 2527.614274 | L8: =('Eingabe Investitionsrechnung'!$C$21*'Eingabe Investitionsrechnung'!$C$22)/100*((1+'Eingabe Investitionsrechnung'!$C$23)^'Berechnungstabelle - Neuinves'!L$3)-((('Eingabe Investitionsrechnung'!$D$21*'Eingabe Investitionsrechnung'!$D$22)/100*((1+'Eingabe Investitionsrechnung'!$D$23)^'Berechnungstabelle - Neuinves'!L$3)))+('Eingabe Investitionsrechnung'!$D$19-'Eingabe Investitionsrechnung'!$C$19) -> 2755.454816 | M8: =('Eingabe Investitionsrechnung'!$C$21*'Eingabe Investitionsrechnung'!$C$22)/100*((1+'Eingabe Investitionsrechnung'!$C$23)^'Berechnungstabelle - Neuinves'!M$3)-((('Eingabe Investitionsrechnung'!$D$21*'Eingabe Investitionsrechnung'!$D$22)/100*((1+'Eingabe Investitionsrechnung'!$D$23)^'Berechnungstabelle - Neuinves'!M$3)))+('Eingabe Investitionsrechnung'!$D$19-'Eingabe Investitionsrechnung'!$C$19) -> 2997.453665 | N8: =('Eingabe Investitionsrechnung'!$C$21*'Eingabe Investitionsrechnung'!$C$22)/100*((1+'Eingabe Investitionsrechnung'!$C$23)^'Berechnungstabelle - Neuinves'!N$3)-((('Eingabe Investitionsrechnung'!$D$21*'Eingabe Investitionsrechnung'!$D$22)/100*((1+'Eingabe Investitionsrechnung'!$D$23)^'Berechnungstabelle - Neuinves'!N$3)))+('Eingabe Investitionsrechnung'!$D$19-'Eingabe Investitionsrechnung'!$C$19) -> 3254.421362 | O8: =('Eingabe Investitionsrechnung'!$C$21*'Eingabe Investitionsrechnung'!$C$22)/100*((1+'Eingabe Investitionsrechnung'!$C$23)^'Berechnungstabelle - Neuinves'!O$3)-((('Eingabe Investitionsrechnung'!$D$21*'Eingabe Investitionsrechnung'!$D$22)/100*((1+'Eingabe Investitionsrechnung'!$D$23)^'Berechnungstabelle - Neuinves'!O$3)))+('Eingabe Investitionsrechnung'!$D$19-'Eingabe Investitionsrechnung'!$C$19) -> 3527.213764 | P8: =('Eingabe Investitionsrechnung'!$C$21*'Eingabe Investitionsrechnung'!$C$22)/100*((1+'Eingabe Investitionsrechnung'!$C$23)^'Berechnungstabelle - Neuinves'!P$3)-((('Eingabe Investitionsrechnung'!$D$21*'Eingabe Investitionsrechnung'!$D$22)/100*((1+'Eingabe Investitionsrechnung'!$D$23)^'Berechnungstabelle - Neuinves'!P$3)))+('Eingabe Investitionsrechnung'!$D$19-'Eingabe Investitionsrechnung'!$C$19) -> 3816.734551 | Q8: =('Eingabe Investitionsrechnung'!$C$21*'Eingabe Investitionsrechnung'!$C$22)/100*((1+'Eingabe Investitionsrechnung'!$C$23)^'Berechnungstabelle - Neuinves'!Q$3)-((('Eingabe Investitionsrechnung'!$D$21*'Eingabe Investitionsrechnung'!$D$22)/100*((1+'Eingabe Investitionsrechnung'!$D$23)^'Berechnungstabelle - Neuinves'!Q$3)))+('Eingabe Investitionsrechnung'!$D$19-'Eingabe Investitionsrechnung'!$C$19) -> 4123.937883 | R8: =('Eingabe Investitionsrechnung'!$C$21*'Eingabe Investitionsrechnung'!$C$22)/100*((1+'Eingabe Investitionsrechnung'!$C$23)^'Berechnungstabelle - Neuinves'!R$3)-((('Eingabe Investitionsrechnung'!$D$21*'Eingabe Investitionsrechnung'!$D$22)/100*((1+'Eingabe Investitionsrechnung'!$D$23)^'Berechnungstabelle - Neuinves'!R$3)))+('Eingabe Investitionsrechnung'!$D$19-'Eingabe Investitionsrechnung'!$C$19) -> 4449.831201 | S8: =('Eingabe Investitionsrechnung'!$C$21*'Eingabe Investitionsrechnung'!$C$22)/100*((1+'Eingabe Investitionsrechnung'!$C$23)^'Berechnungstabelle - Neuinves'!S$3)-((('Eingabe Investitionsrechnung'!$D$21*'Eingabe Investitionsrechnung'!$D$22)/100*((1+'Eingabe Investitionsrechnung'!$D$23)^'Berechnungstabelle - Neuinves'!S$3)))+('Eingabe Investitionsrechnung'!$D$19-'Eingabe Investitionsrechnung'!$C$19) -> 4795.478179 | T8: =('Eingabe Investitionsrechnung'!$C$21*'Eingabe Investitionsrechnung'!$C$22)/100*((1+'Eingabe Investitionsrechnung'!$C$23)^'Berechnungstabelle - Neuinves'!T$3)-((('Eingabe Investitionsrechnung'!$D$21*'Eingabe Investitionsrechnung'!$D$22)/100*((1+'Eingabe Investitionsrechnung'!$D$23)^'Berechnungstabelle - Neuinves'!T$3)))+('Eingabe Investitionsrechnung'!$D$19-'Eingabe Investitionsrechnung'!$C$19) -> 5162.001847 | U8: =('Eingabe Investitionsrechnung'!$C$21*'Eingabe Investitionsrechnung'!$C$22)/100*((1+'Eingabe Investitionsrechnung'!$C$23)^'Berechnungstabelle - Neuinves'!U$3)-((('Eingabe Investitionsrechnung'!$D$21*'Eingabe Investitionsrechnung'!$D$22)/100*((1+'Eingabe Investitionsrechnung'!$D$23)^'Berechnungstabelle - Neuinves'!U$3)))+('Eingabe Investitionsrechnung'!$D$19-'Eingabe Investitionsrechnung'!$C$19) -> 5550.587881 | V8: =('Eingabe Investitionsrechnung'!$C$21*'Eingabe Investitionsrechnung'!$C$22)/100*((1+'Eingabe Investitionsrechnung'!$C$23)^'Berechnungstabelle - Neuinves'!V$3)-((('Eingabe Investitionsrechnung'!$D$21*'Eingabe Investitionsrechnung'!$D$22)/100*((1+'Eingabe Investitionsrechnung'!$D$23)^'Berechnungstabelle - Neuinves'!V$3)))+('Eingabe Investitionsrechnung'!$D$19-'Eingabe Investitionsrechnung'!$C$19) -> 5962.488077 | W8: =('Eingabe Investitionsrechnung'!$C$21*'Eingabe Investitionsrechnung'!$C$22)/100*((1+'Eingabe Investitionsrechnung'!$C$23)^'Berechnungstabelle - Neuinves'!W$3)-((('Eingabe Investitionsrechnung'!$D$21*'Eingabe Investitionsrechnung'!$D$22)/100*((1+'Eingabe Investitionsrechnung'!$D$23)^'Berechnungstabelle - Neuinves'!W$3)))+('Eingabe Investitionsrechnung'!$D$19-'Eingabe Investitionsrechnung'!$C$19) -> 6399.024015 | X8: =('Eingabe Investitionsrechnung'!$C$21*'Eingabe Investitionsrechnung'!$C$22)/100*((1+'Eingabe Investitionsrechnung'!$C$23)^'Berechnungstabelle - Neuinves'!X$3)-((('Eingabe Investitionsrechnung'!$D$21*'Eingabe Investitionsrechnung'!$D$22)/100*((1+'Eingabe Investitionsrechnung'!$D$23)^'Berechnungstabelle - Neuinves'!X$3)))+('Eingabe Investitionsrechnung'!$D$19-'Eingabe Investitionsrechnung'!$C$19) -> 6861.590935 | Y8: =('Eingabe Investitionsrechnung'!$C$21*'Eingabe Investitionsrechnung'!$C$22)/100*((1+'Eingabe Investitionsrechnung'!$C$23)^'Berechnungstabelle - Neuinves'!Y$3)-((('Eingabe Investitionsrechnung'!$D$21*'Eingabe Investitionsrechnung'!$D$22)/100*((1+'Eingabe Investitionsrechnung'!$D$23)^'Berechnungstabelle - Neuinves'!Y$3)))+('Eingabe Investitionsrechnung'!$D$19-'Eingabe Investitionsrechnung'!$C$19) -> 7351.661811 | Z8: =('Eingabe Investitionsrechnung'!$C$21*'Eingabe Investitionsrechnung'!$C$22)/100*((1+'Eingabe Investitionsrechnung'!$C$23)^'Berechnungstabelle - Neuinves'!Z$3)-((('Eingabe Investitionsrechnung'!$D$21*'Eingabe Investitionsrechnung'!$D$22)/100*((1+'Eingabe Investitionsrechnung'!$D$23)^'Berechnungstabelle - Neuinves'!Z$3)))+('Eingabe Investitionsrechnung'!$D$19-'Eingabe Investitionsrechnung'!$C$19) -> 7870.791667 | AA8: =('Eingabe Investitionsrechnung'!$C$21*'Eingabe Investitionsrechnung'!$C$22)/100*((1+'Eingabe Investitionsrechnung'!$C$23)^'Berechnungstabelle - Neuinves'!AA$3)-((('Eingabe Investitionsrechnung'!$D$21*'Eingabe Investitionsrechnung'!$D$22)/100*((1+'Eingabe Investitionsrechnung'!$D$23)^'Berechnungstabelle - Neuinves'!AA$3)))+('Eingabe Investitionsrechnung'!$D$19-'Eingabe Investitionsrechnung'!$C$19) -> 8420.622122 | AB8: =('Eingabe Investitionsrechnung'!$C$21*'Eingabe Investitionsrechnung'!$C$22)/100*((1+'Eingabe Investitionsrechnung'!$C$23)^'Berechnungstabelle - Neuinves'!AB$3)-((('Eingabe Investitionsrechnung'!$D$21*'Eingabe Investitionsrechnung'!$D$22)/100*((1+'Eingabe Investitionsrechnung'!$D$23)^'Berechnungstabelle - Neuinves'!AB$3)))+('Eingabe Investitionsrechnung'!$D$19-'Eingabe Investitionsrechnung'!$C$19) -> 9002.886191 | AC8: =('Eingabe Investitionsrechnung'!$C$21*'Eingabe Investitionsrechnung'!$C$22)/100*((1+'Eingabe Investitionsrechnung'!$C$23)^'Berechnungstabelle - Neuinves'!AC$3)-((('Eingabe Investitionsrechnung'!$D$21*'Eingabe Investitionsrechnung'!$D$22)/100*((1+'Eingabe Investitionsrechnung'!$D$23)^'Berechnungstabelle - Neuinves'!AC$3)))+('Eingabe Investitionsrechnung'!$D$19-'Eingabe Investitionsrechnung'!$C$19) -> 9619.413348 | AD8: =('Eingabe Investitionsrechnung'!$C$21*'Eingabe Investitionsrechnung'!$C$22)/100*((1+'Eingabe Investitionsrechnung'!$C$23)^'Berechnungstabelle - Neuinves'!AD$3)-((('Eingabe Investitionsrechnung'!$D$21*'Eingabe Investitionsrechnung'!$D$22)/100*((1+'Eingabe Investitionsrechnung'!$D$23)^'Berechnungstabelle - Neuinves'!AD$3)))+('Eingabe Investitionsrechnung'!$D$19-'Eingabe Investitionsrechnung'!$C$19) -> 10272.13487 | AE8: =('Eingabe Investitionsrechnung'!$C$21*'Eingabe Investitionsrechnung'!$C$22)/100*((1+'Eingabe Investitionsrechnung'!$C$23)^'Berechnungstabelle - Neuinves'!AE$3)-((('Eingabe Investitionsrechnung'!$D$21*'Eingabe Investitionsrechnung'!$D$22)/100*((1+'Eingabe Investitionsrechnung'!$D$23)^'Berechnungstabelle - Neuinves'!AE$3)))+('Eingabe Investitionsrechnung'!$D$19-'Eingabe Investitionsrechnung'!$C$19) -> 10963.08949 | AF8: =('Eingabe Investitionsrechnung'!$C$21*'Eingabe Investitionsrechnung'!$C$22)/100*((1+'Eingabe Investitionsrechnung'!$C$23)^'Berechnungstabelle - Neuinves'!AF$3)-((('Eingabe Investitionsrechnung'!$D$21*'Eingabe Investitionsrechnung'!$D$22)/100*((1+'Eingabe Investitionsrechnung'!$D$23)^'Berechnungstabelle - Neuinves'!AF$3)))+('Eingabe Investitionsrechnung'!$D$19-'Eingabe Investitionsrechnung'!$C$19) -> 11694.42933
A9: Einsparung Energiekosten nach Nutzungsdauer | B9: =B8*B42 -> 0 | C9: =C8*C19 -> 1130.5 | D9: =D8*D19 -> 1269.54769 | E9: 1417.639317 | F9: 1575.298986 | G9: 1743.080212 | H9: 1921.567549 | I9: 2111.378317 | J9: 2313.164421 | K9: 2527.614274 | L9: 2755.454816 | M9: 2997.453665 | N9: 3254.421362 | O9: 3527.213764 | P9: 3816.734551 | Q9: 4123.937883 | R9: 4449.831201 | S9: 4795.478179 | T9: 5162.001847 | U9: 5550.587881 | V9: 5962.488077 | W9: 0 | X9: 0 | Y9: 0 | Z9: 0 | AA9: 0 | AB9: 0 | AC9: 0 | AD9: 0 | AE9: 0 | AF9: 0
A10: Kostenvorteil Nebenkosten & sont. Erträge nach Nutzungsdauer | B10: 0 | C10: =C7*C19 -> 300 | D10: =D7*D19 -> 300 | E10: 300 | F10: 300 | G10: 300 | H10: 300 | I10: 300 | J10: 300 | K10: 300 | L10: 300 | M10: 300 | N10: 300 | O10: 300 | P10: 300 | Q10: 300 | R10: 300 | S10: 300 | T10: 300 | U10: 300 | V10: 300 | W10: 0 | X10: 0 | Y10: 0 | Z10: 0 | AA10: 0 | AB10: 0 | AC10: 0 | AD10: 0 | AE10: 0 | AF10: 0
A11: Sonstige Einmalkosten | B11: ='Eingabe Investitionsrechnung'!D29*'Berechnungstabelle - Neuinves'!B19 -> 200
A12: Summe Aus- und Einzahlungen | B12: =-B5-B11 -> -12200 | C12: =-C5+C10+C9-C11 -> 1430.5 | D12: =-D5+D10+D9-D11 -> 1569.54769 | E12: 1717.639317 | F12: 1875.298986 | G12: 2043.080212 | H12: 2221.567549 | I12: 2411.378317 | J12: 2613.164421 | K12: 2827.614274 | L12: 3055.454816 | M12: 3297.453665 | N12: 3554.421362 | O12: 3827.213764 | P12: 4116.734551 | Q12: 4423.937883 | R12: 4749.831201 | S12: 5095.478179 | T12: 5462.001847 | U12: 5850.587881 | V12: 6262.488077 | W12: 0 | X12: 0 | Y12: 0 | Z12: 0 | AA12: 0 | AB12: 0 | AC12: 0 | AD12: 0 | AE12: 0 | AF12: 0
A13: Barwertfaktor | B13: 1 | C13: =1/(1+'Eingabe Investitionsrechnung'!$C$17)^'Berechnungstabelle - Neuinves'!C3 -> 0.9794319295 | D13: =1/(1+'Eingabe Investitionsrechnung'!$C$17)^'Berechnungstabelle - Neuinves'!D3 -> 0.9592869045 | E13: =1/(1+'Eingabe Investitionsrechnung'!$C$17)^'Berechnungstabelle - Neuinves'!E3 -> 0.9395562238 | F13: =1/(1+'Eingabe Investitionsrechnung'!$C$17)^'Berechnungstabelle - Neuinves'!F3 -> 0.9202313651 | G13: =1/(1+'Eingabe Investitionsrechnung'!$C$17)^'Berechnungstabelle - Neuinves'!G3 -> 0.9013039815 | H13: =1/(1+'Eingabe Investitionsrechnung'!$C$17)^'Berechnungstabelle - Neuinves'!H3 -> 0.8827658977 | I13: =1/(1+'Eingabe Investitionsrechnung'!$C$17)^'Berechnungstabelle - Neuinves'!I3 -> 0.8646091064 | J13: =1/(1+'Eingabe Investitionsrechnung'!$C$17)^'Berechnungstabelle - Neuinves'!J3 -> 0.8468257653 | K13: =1/(1+'Eingabe Investitionsrechnung'!$C$17)^'Berechnungstabelle - Neuinves'!K3 -> 0.8294081933 | L13: =1/(1+'Eingabe Investitionsrechnung'!$C$17)^'Berechnungstabelle - Neuinves'!L3 -> 0.8123488671 | M13: =1/(1+'Eingabe Investitionsrechnung'!$C$17)^'Berechnungstabelle - Neuinves'!M3 -> 0.7956404183 | N13: =1/(1+'Eingabe Investitionsrechnung'!$C$17)^'Berechnungstabelle - Neuinves'!N3 -> 0.7792756301 | O13: =1/(1+'Eingabe Investitionsrechnung'!$C$17)^'Berechnungstabelle - Neuinves'!O3 -> 0.763247434 | P13: =1/(1+'Eingabe Investitionsrechnung'!$C$17)^'Berechnungstabelle - Neuinves'!P3 -> 0.7475489069 | Q13: =1/(1+'Eingabe Investitionsrechnung'!$C$17)^'Berechnungstabelle - Neuinves'!Q3 -> 0.7321732683 | R13: =1/(1+'Eingabe Investitionsrechnung'!$C$17)^'Berechnungstabelle - Neuinves'!R3 -> 0.7171138769 | S13: =1/(1+'Eingabe Investitionsrechnung'!$C$17)^'Berechnungstabelle - Neuinves'!S3 -> 0.7023642281 | T13: =1/(1+'Eingabe Investitionsrechnung'!$C$17)^'Berechnungstabelle - Neuinves'!T3 -> 0.6879179511 | U13: =1/(1+'Eingabe Investitionsrechnung'!$C$17)^'Berechnungstabelle - Neuinves'!U3 -> 0.6737688062 | V13: =1/(1+'Eingabe Investitionsrechnung'!$C$17)^'Berechnungstabelle - Neuinves'!V3 -> 0.6599106818 | W13: =1/(1+'Eingabe Investitionsrechnung'!$C$17)^'Berechnungstabelle - Neuinves'!W3 -> 0.6463375924 | X13: =1/(1+'Eingabe Investitionsrechnung'!$C$17)^'Berechnungstabelle - Neuinves'!X3 -> 0.6330436752 | Y13: =1/(1+'Eingabe Investitionsrechnung'!$C$17)^'Berechnungstabelle - Neuinves'!Y3 -> 0.6200231883 | Z13: =1/(1+'Eingabe Investitionsrechnung'!$C$17)^'Berechnungstabelle - Neuinves'!Z3 -> 0.6072705076 | AA13: =1/(1+'Eingabe Investitionsrechnung'!$C$17)^'Berechnungstabelle - Neuinves'!AA3 -> 0.594780125 | AB13: =1/(1+'Eingabe Investitionsrechnung'!$C$17)^'Berechnungstabelle - Neuinves'!AB3 -> 0.5825466454 | AC13: =1/(1+'Eingabe Investitionsrechnung'!$C$17)^'Berechnungstabelle - Neuinves'!AC3 -> 0.570564785 | AD13: =1/(1+'Eingabe Investitionsrechnung'!$C$17)^'Berechnungstabelle - Neuinves'!AD3 -> 0.5588293682 | AE13: =1/(1+'Eingabe Investitionsrechnung'!$C$17)^'Berechnungstabelle - Neuinves'!AE3 -> 0.5473353264 | AF13: =1/(1+'Eingabe Investitionsrechnung'!$C$17)^'Berechnungstabelle - Neuinves'!AF3 -> 0.5360776948
A14: Barwerte | B14: =+B12*B13 -> -12200 | C14: =+C12*C13 -> 1401.077375 | D14: 1505.646545 | E14: 1613.81871 | F14: 1725.708946 | G14: 1841.436329 | H14: 1961.124071 | I14: 2084.899652 | J14: 2212.894961 | K14: 2345.246446 | L14: 2482.095258 | M14: 2623.587413 | N14: 2769.873946 | O14: 2921.111084 | P14: 3077.460413 | Q14: 3239.089058 | R14: 3406.169867 | S14: 3578.881598 | T14: 3757.40912 | U14: 3941.943612 | V14: 4132.682777 | W14: 0 | X14: 0 | Y14: 0 | Z14: 0 | AA14: 0 | AB14: 0 | AC14: 0 | AD14: 0 | AE14: 0 | AF14: 0
A15: Kumulierte Barwerte | B15: =+B14 -> -12200 | C15: =B15+C14 -> -10798.92262 | D15: =C15+D14 -> -9293.27608 | E15: -7679.45737 | F15: -5953.748424 | G15: -4112.312094 | H15: -2151.188023 | I15: -66.28837112 | J15: 2146.60659 | K15: 4491.853036 | L15: 6973.948294 | M15: 9597.535707 | N15: 12367.40965 | O15: 15288.52074 | P15: 18365.98115 | Q15: 21605.07021 | R15: 25011.24008 | S15: 28590.12167 | T15: 32347.53079 | U15: 36289.47441 | V15: 40422.15718 | W15: 40422.15718 | X15: 40422.15718 | Y15: 40422.15718 | Z15: 40422.15718 | AA15: 40422.15718 | AB15: 40422.15718 | AC15: 40422.15718 | AD15: 40422.15718 | AE15: 40422.15718 | AF15: 40422.15718
A16: Negative Jahre | B16: 0 | C16: =+IF(C15<0,1,0) -> 1 | D16: =+IF(D15<0,1,0) -> 1 | E16: 1 | F16: 1 | G16: 1 | H16: 1 | I16: 1 | J16: 0 | K16: 0 | L16: 0 | M16: 0 | N16: 0 | O16: 0 | P16: 0 | Q16: 0 | R16: 0 | S16: 0 | T16: 0 | U16: 0 | V16: 0 | W16: 0 | X16: 0 | Y16: 0 | Z16: 0 | AA16: 0 | AB16: 0 | AC16: 0 | AD16: 0 | AE16: 0 | AF16: 0
A17: Bruchteil Übergangsjahr | B17: 0 | C17: =IF(AND(B16>0,C16=0),ABS(B15)/(ABS(B15)+C15),0) -> 0 | D17: 0 | E17: 0 | F17: 0 | G17: 0 | H17: 0 | I17: 0 | J17: =IF(AND(I16>0,J16=0),ABS(I15)/(ABS(I15)+J15),0) -> 0.02995549824 | K17: =IF(AND(J16>0,K16=0),ABS(J15)/(ABS(J15)+K15),0) -> 0 | L17: 0 | M17: 0 | N17: 0 | O17: 0 | P17: 0 | Q17: 0 | R17: 0 | S17: 0 | T17: 0 | U17: 0 | V17: 0 | W17: 0 | X17: 0 | Y17: 0 | Z17: 0 | AA17: 0 | AB17: =IF(AND(AA16>0,AB16=0),ABS(AA15)/(ABS(AA15)+AB15),0) -> 0 | AC17: 0 | AD17: 0 | AE17: 0 | AF17: =IF(AND(AE16>0,AF16=0),ABS(AE15)/(ABS(AE15)+AF15),0) -> 0
A18: Nutzungsdauer | B18: - | C18: =+'Eingabe Investitionsrechnung'!D16 -> 20 | D18: =C18-1 -> 19 | E18: =D18-1 -> 18 | F18: 17 | G18: 16 | H18: 15 | I18: 14 | J18: 13 | K18: 12 | L18: 11 | M18: 10 | N18: 9 | O18: 8 | P18: 7 | Q18: 6 | R18: 5 | S18: 4 | T18: 3 | U18: 2 | V18: 1 | W18: 0 | X18: -1 | Y18: -2 | Z18: -3 | AA18: -4 | AB18: -5 | AC18: -6 | AD18: -7 | AE18: -8 | AF18: -9
A19: Aktive Laufzeit | B19: =$C$19 -> 1 | C19: =IF(C18>0,1,0) -> 1 | D19: =IF(D18>0,1,0) -> 1 | E19: 1 | F19: 1 | G19: 1 | H19: 1 | I19: 1 | J19: 1 | K19: 1 | L19: 1 | M19: 1 | N19: 1 | O19: 1 | P19: 1 | Q19: 1 | R19: 1 | S19: 1 | T19: 1 | U19: 1 | V19: 1 | W19: 0 | X19: 0 | Y19: 0 | Z19: 0 | AA19: 0 | AB19: 0 | AC19: 0 | AD19: 0 | AE19: 0 | AF19: 0
A20: Kumulierte Barwerte - Neuinvestition | B20: =$B$15 -> -12200 | C20: =IF(C14>0,C15,"") -> -10798.92262 | D20: -9293.27608 | E20: -7679.45737 | F20: -5953.748424 | G20: -4112.312094 | H20: -2151.188023 | I20: -66.28837112 | J20: 2146.60659 | K20: 4491.853036 | L20: 6973.948294 | M20: 9597.535707 | N20: 12367.40965 | O20: 15288.52074 | P20: 18365.98115 | Q20: 21605.07021 | R20: 25011.24008 | S20: 28590.12167 | T20: 32347.53079 | U20: 36289.47441 | V20: 40422.15718 | AF20: =IF(AF14>0,AF15,"") -> 
A21: Grafik - Kalenderjahr | B21: ='Eingabe Investitionsrechnung'!C15 -> 2023 | C21: =IF(C19>0,B21+C19,"") -> 2024 | D21: 2025 | E21: 2026 | F21: 2027 | G21: 2028 | H21: 2029 | I21: 2030 | J21: 2031 | K21: 2032 | L21: 2033 | M21: 2034 | N21: 2035 | O21: 2036 | P21: 2037 | Q21: 2038 | R21: 2039 | S21: 2040 | T21: 2041 | U21: 2042 | V21: 2043 | AF21: =IF(AF19>0,AE21+AF19,"") -> 
A24: Berechnungstabelle - Ist/Alt
B25: Investition | C25: Jahr | D25: Jahr | E25: Jahr | F25: Jahr | G25: Jahr | H25: Jahr | I25: Jahr | J25: Jahr | K25: Jahr | L25: Jahr | M25: Jahr | N25: Jahr | O25: Jahr | P25: Jahr | Q25: Jahr | R25: Jahr | S25: Jahr | T25: Jahr | U25: Jahr | V25: Jahr | W25: Jahr | X25: Jahr | Y25: Jahr | Z25: Jahr | AA25: Jahr | AB25: Jahr | AC25: Jahr | AD25: Jahr | AE25: Jahr | AF25: Jahr
B26: 31.12. | C26: 1 | D26: 2 | E26: 3 | F26: 4 | G26: 5 | H26: 6 | I26: 7 | J26: 8 | K26: 9 | L26: 10 | M26: 11 | N26: 12 | O26: 13 | P26: 14 | Q26: 15 | R26: 16 | S26: 17 | T26: 18 | U26: 19 | V26: 20 | W26: 21 | X26: 22 | Y26: 23 | Z26: 24 | AA26: 25 | AB26: 26 | AC26: 27 | AD26: 28 | AE26: 29 | AF26: 30
A27: Kalenderjahr | B27: =B4 -> 2023 | C27: =C4 -> 2024 | D27: 2025 | E27: 2026 | F27: 2027 | G27: 2028 | H27: 2029 | I27: 2030 | J27: 2031 | K27: 2032 | L27: 2033 | M27: 2034 | N27: 2035 | O27: 2036 | P27: 2037 | Q27: 2038 | R27: 2039 | S27: 2040 | T27: 2041 | U27: 2042 | V27: 2043 | W27: 2044 | X27: 2045 | Y27: 2046 | Z27: 2047 | AA27: 2048 | AB27: 2049 | AC27: 2050 | AD27: 2051 | AE27: 2052 | AF27: 2053
A28: Investition abzgl. Förderung | B28: =+'Eingabe Investitionsrechnung'!C18-'Eingabe Investitionsrechnung'!C24 -> 0 | C28: 0 | D28: 0 | E28: 0 | F28: 0 | G28: 0 | H28: 0 | I28: 0 | J28: 0 | K28: 0 | L28: 0 | M28: 0 | N28: 0 | O28: 0 | P28: 0 | Q28: 0 | R28: 0 | S28: 0 | T28: 0 | U28: 0 | V28: 0 | W28: 0 | X28: 0 | Y28: 0 | Z28: 0 | AA28: 0 | AB28: 0 | AC28: 0 | AD28: 0 | AE28: 0 | AF28: 0
A29: Jährliche Energiekosten nach Nutzungsdauer - Weiterbetrieb Altanlage | B29: 0 | C29: =('Eingabe Investitionsrechnung'!$C$21*'Eingabe Investitionsrechnung'!$C$22)/100*((1+'Eingabe Investitionsrechnung'!$C$23)^'Berechnungstabelle - Neuinves'!C26)*'Berechnungstabelle - Neuinves'!C42 -> 3165.9 | D29: =('Eingabe Investitionsrechnung'!$C$21*'Eingabe Investitionsrechnung'!$C$22)/100*((1+'Eingabe Investitionsrechnung'!$C$23)^'Berechnungstabelle - Neuinves'!D26)*'Berechnungstabelle - Neuinves'!D42 -> 3340.97427 | E29: =('Eingabe Investitionsrechnung'!$C$21*'Eingabe Investitionsrechnung'!$C$22)/100*((1+'Eingabe Investitionsrechnung'!$C$23)^'Berechnungstabelle - Neuinves'!E26)*'Berechnungstabelle - Neuinves'!E42 -> 3525.730147 | F29: =('Eingabe Investitionsrechnung'!$C$21*'Eingabe Investitionsrechnung'!$C$22)/100*((1+'Eingabe Investitionsrechnung'!$C$23)^'Berechnungstabelle - Neuinves'!F26)*'Berechnungstabelle - Neuinves'!F42 -> 3720.703024 | G29: =('Eingabe Investitionsrechnung'!$C$21*'Eingabe Investitionsrechnung'!$C$22)/100*((1+'Eingabe Investitionsrechnung'!$C$23)^'Berechnungstabelle - Neuinves'!G26)*'Berechnungstabelle - Neuinves'!G42 -> 3926.457902 | H29: =('Eingabe Investitionsrechnung'!$C$21*'Eingabe Investitionsrechnung'!$C$22)/100*((1+'Eingabe Investitionsrechnung'!$C$23)^'Berechnungstabelle - Neuinves'!H26)*'Berechnungstabelle - Neuinves'!H42 -> 4143.591023 | I29: =('Eingabe Investitionsrechnung'!$C$21*'Eingabe Investitionsrechnung'!$C$22)/100*((1+'Eingabe Investitionsrechnung'!$C$23)^'Berechnungstabelle - Neuinves'!I26)*'Berechnungstabelle - Neuinves'!I42 -> 4372.731607 | J29: =('Eingabe Investitionsrechnung'!$C$21*'Eingabe Investitionsrechnung'!$C$22)/100*((1+'Eingabe Investitionsrechnung'!$C$23)^'Berechnungstabelle - Neuinves'!J26)*'Berechnungstabelle - Neuinves'!J42 -> 4614.543665 | K29: =('Eingabe Investitionsrechnung'!$C$21*'Eingabe Investitionsrechnung'!$C$22)/100*((1+'Eingabe Investitionsrechnung'!$C$23)^'Berechnungstabelle - Neuinves'!K26)*'Berechnungstabelle - Neuinves'!K42 -> 4869.72793 | L29: =('Eingabe Investitionsrechnung'!$C$21*'Eingabe Investitionsrechnung'!$C$22)/100*((1+'Eingabe Investitionsrechnung'!$C$23)^'Berechnungstabelle - Neuinves'!L26)*'Berechnungstabelle - Neuinves'!L42 -> 5139.023884 | M29: =('Eingabe Investitionsrechnung'!$C$21*'Eingabe Investitionsrechnung'!$C$22)/100*((1+'Eingabe Investitionsrechnung'!$C$23)^'Berechnungstabelle - Neuinves'!M26)*'Berechnungstabelle - Neuinves'!M42 -> 5423.211905 | N29: =('Eingabe Investitionsrechnung'!$C$21*'Eingabe Investitionsrechnung'!$C$22)/100*((1+'Eingabe Investitionsrechnung'!$C$23)^'Berechnungstabelle - Neuinves'!N26)*'Berechnungstabelle - Neuinves'!N42 -> 5723.115523 | O29: =('Eingabe Investitionsrechnung'!$C$21*'Eingabe Investitionsrechnung'!$C$22)/100*((1+'Eingabe Investitionsrechnung'!$C$23)^'Berechnungstabelle - Neuinves'!O26)*'Berechnungstabelle - Neuinves'!O42 -> 6039.603812 | P29: =('Eingabe Investitionsrechnung'!$C$21*'Eingabe Investitionsrechnung'!$C$22)/100*((1+'Eingabe Investitionsrechnung'!$C$23)^'Berechnungstabelle - Neuinves'!P26)*'Berechnungstabelle - Neuinves'!P42 -> 6373.593902 | Q29: =('Eingabe Investitionsrechnung'!$C$21*'Eingabe Investitionsrechnung'!$C$22)/100*((1+'Eingabe Investitionsrechnung'!$C$23)^'Berechnungstabelle - Neuinves'!Q26)*'Berechnungstabelle - Neuinves'!Q42 -> 6726.053645 | R29: =('Eingabe Investitionsrechnung'!$C$21*'Eingabe Investitionsrechnung'!$C$22)/100*((1+'Eingabe Investitionsrechnung'!$C$23)^'Berechnungstabelle - Neuinves'!R26)*'Berechnungstabelle - Neuinves'!R42 -> 7098.004412 | S29: =('Eingabe Investitionsrechnung'!$C$21*'Eingabe Investitionsrechnung'!$C$22)/100*((1+'Eingabe Investitionsrechnung'!$C$23)^'Berechnungstabelle - Neuinves'!S26)*'Berechnungstabelle - Neuinves'!S42 -> 7490.524056 | T29: =('Eingabe Investitionsrechnung'!$C$21*'Eingabe Investitionsrechnung'!$C$22)/100*((1+'Eingabe Investitionsrechnung'!$C$23)^'Berechnungstabelle - Neuinves'!T26)*'Berechnungstabelle - Neuinves'!T42 -> 7904.750036 | U29: =('Eingabe Investitionsrechnung'!$C$21*'Eingabe Investitionsrechnung'!$C$22)/100*((1+'Eingabe Investitionsrechnung'!$C$23)^'Berechnungstabelle - Neuinves'!U26)*'Berechnungstabelle - Neuinves'!U42 -> 8341.882713 | V29: =('Eingabe Investitionsrechnung'!$C$21*'Eingabe Investitionsrechnung'!$C$22)/100*((1+'Eingabe Investitionsrechnung'!$C$23)^'Berechnungstabelle - Neuinves'!V26)*'Berechnungstabelle - Neuinves'!V42 -> 8803.188827 | W29: =('Eingabe Investitionsrechnung'!$C$21*'Eingabe Investitionsrechnung'!$C$22)/100*((1+'Eingabe Investitionsrechnung'!$C$23)^'Berechnungstabelle - Neuinves'!W26)*'Berechnungstabelle - Neuinves'!W42 -> 0 | X29: =('Eingabe Investitionsrechnung'!$C$21*'Eingabe Investitionsrechnung'!$C$22)/100*((1+'Eingabe Investitionsrechnung'!$C$23)^'Berechnungstabelle - Neuinves'!X26)*'Berechnungstabelle - Neuinves'!X42 -> 0 | Y29: =('Eingabe Investitionsrechnung'!$C$21*'Eingabe Investitionsrechnung'!$C$22)/100*((1+'Eingabe Investitionsrechnung'!$C$23)^'Berechnungstabelle - Neuinves'!Y26)*'Berechnungstabelle - Neuinves'!Y42 -> 0 | Z29: =('Eingabe Investitionsrechnung'!$C$21*'Eingabe Investitionsrechnung'!$C$22)/100*((1+'Eingabe Investitionsrechnung'!$C$23)^'Berechnungstabelle - Neuinves'!Z26)*'Berechnungstabelle - Neuinves'!Z42 -> 0 | AA29: =('Eingabe Investitionsrechnung'!$C$21*'Eingabe Investitionsrechnung'!$C$22)/100*((1+'Eingabe Investitionsrechnung'!$C$23)^'Berechnungstabelle - Neuinves'!AA26)*'Berechnungstabelle - Neuinves'!AA42 -> 0 | AB29: =('Eingabe Investitionsrechnung'!$C$21*'Eingabe Investitionsrechnung'!$C$22)/100*((1+'Eingabe Investitionsrechnung'!$C$23)^'Berechnungstabelle - Neuinves'!AB26)*'Berechnungstabelle - Neuinves'!AB42 -> 0 | AC29: =('Eingabe Investitionsrechnung'!$C$21*'Eingabe Investitionsrechnung'!$C$22)/100*((1+'Eingabe Investitionsrechnung'!$C$23)^'Berechnungstabelle - Neuinves'!AC26)*'Berechnungstabelle - Neuinves'!AC42 -> 0 | AD29: =('Eingabe Investitionsrechnung'!$C$21*'Eingabe Investitionsrechnung'!$C$22)/100*((1+'Eingabe Investitionsrechnung'!$C$23)^'Berechnungstabelle - Neuinves'!AD26)*'Berechnungstabelle - Neuinves'!AD42 -> 0 | AE29: =('Eingabe Investitionsrechnung'!$C$21*'Eingabe Investitionsrechnung'!$C$22)/100*((1+'Eingabe Investitionsrechnung'!$C$23)^'Berechnungstabelle - Neuinves'!AE26)*'Berechnungstabelle - Neuinves'!AE42 -> 0 | AF29: =('Eingabe Investitionsrechnung'!$C$21*'Eingabe Investitionsrechnung'!$C$22)/100*((1+'Eingabe Investitionsrechnung'!$C$23)^'Berechnungstabelle - Neuinves'!AF26)*'Berechnungstabelle - Neuinves'!AF42 -> 0
A30: jährlicher Kostenvorteil Nebenkosten & sonst. Erträge | B30: 0 | C30: =('Eingabe Investitionsrechnung'!$D$28-'Eingabe Investitionsrechnung'!$C$28-('Eingabe Investitionsrechnung'!$D$19-'Eingabe Investitionsrechnung'!$C$19)) -> -300 | D30: =('Eingabe Investitionsrechnung'!$D$28-'Eingabe Investitionsrechnung'!$C$28-('Eingabe Investitionsrechnung'!$D$19-'Eingabe Investitionsrechnung'!$C$19)) -> -300 | E30: =('Eingabe Investitionsrechnung'!$D$28-'Eingabe Investitionsrechnung'!$C$28-('Eingabe Investitionsrechnung'!$D$19-'Eingabe Investitionsrechnung'!$C$19)) -> -300 | F30: =('Eingabe Investitionsrechnung'!$D$28-'Eingabe Investitionsrechnung'!$C$28-('Eingabe Investitionsrechnung'!$D$19-'Eingabe Investitionsrechnung'!$C$19)) -> -300 | G30: =('Eingabe Investitionsrechnung'!$D$28-'Eingabe Investitionsrechnung'!$C$28-('Eingabe Investitionsrechnung'!$D$19-'Eingabe Investitionsrechnung'!$C$19)) -> -300 | H30: =('Eingabe Investitionsrechnung'!$D$28-'Eingabe Investitionsrechnung'!$C$28-('Eingabe Investitionsrechnung'!$D$19-'Eingabe Investitionsrechnung'!$C$19)) -> -300 | I30: =('Eingabe Investitionsrechnung'!$D$28-'Eingabe Investitionsrechnung'!$C$28-('Eingabe Investitionsrechnung'!$D$19-'Eingabe Investitionsrechnung'!$C$19)) -> -300 | J30: =('Eingabe Investitionsrechnung'!$D$28-'Eingabe Investitionsrechnung'!$C$28-('Eingabe Investitionsrechnung'!$D$19-'Eingabe Investitionsrechnung'!$C$19)) -> -300 | K30: =('Eingabe Investitionsrechnung'!$D$28-'Eingabe Investitionsrechnung'!$C$28-('Eingabe Investitionsrechnung'!$D$19-'Eingabe Investitionsrechnung'!$C$19)) -> -300 | L30: =('Eingabe Investitionsrechnung'!$D$28-'Eingabe Investitionsrechnung'!$C$28-('Eingabe Investitionsrechnung'!$D$19-'Eingabe Investitionsrechnung'!$C$19)) -> -300 | M30: =('Eingabe Investitionsrechnung'!$D$28-'Eingabe Investitionsrechnung'!$C$28-('Eingabe Investitionsrechnung'!$D$19-'Eingabe Investitionsrechnung'!$C$19)) -> -300 | N30: =('Eingabe Investitionsrechnung'!$D$28-'Eingabe Investitionsrechnung'!$C$28-('Eingabe Investitionsrechnung'!$D$19-'Eingabe Investitionsrechnung'!$C$19)) -> -300 | O30: =('Eingabe Investitionsrechnung'!$D$28-'Eingabe Investitionsrechnung'!$C$28-('Eingabe Investitionsrechnung'!$D$19-'Eingabe Investitionsrechnung'!$C$19)) -> -300 | P30: =('Eingabe Investitionsrechnung'!$D$28-'Eingabe Investitionsrechnung'!$C$28-('Eingabe Investitionsrechnung'!$D$19-'Eingabe Investitionsrechnung'!$C$19)) -> -300 | Q30: =('Eingabe Investitionsrechnung'!$D$28-'Eingabe Investitionsrechnung'!$C$28-('Eingabe Investitionsrechnung'!$D$19-'Eingabe Investitionsrechnung'!$C$19)) -> -300 | R30: =('Eingabe Investitionsrechnung'!$D$28-'Eingabe Investitionsrechnung'!$C$28-('Eingabe Investitionsrechnung'!$D$19-'Eingabe Investitionsrechnung'!$C$19)) -> -300 | S30: =('Eingabe Investitionsrechnung'!$D$28-'Eingabe Investitionsrechnung'!$C$28-('Eingabe Investitionsrechnung'!$D$19-'Eingabe Investitionsrechnung'!$C$19)) -> -300 | T30: =('Eingabe Investitionsrechnung'!$D$28-'Eingabe Investitionsrechnung'!$C$28-('Eingabe Investitionsrechnung'!$D$19-'Eingabe Investitionsrechnung'!$C$19)) -> -300 | U30: =('Eingabe Investitionsrechnung'!$D$28-'Eingabe Investitionsrechnung'!$C$28-('Eingabe Investitionsrechnung'!$D$19-'Eingabe Investitionsrechnung'!$C$19)) -> -300 | V30: =('Eingabe Investitionsrechnung'!$D$28-'Eingabe Investitionsrechnung'!$C$28-('Eingabe Investitionsrechnung'!$D$19-'Eingabe Investitionsrechnung'!$C$19)) -> -300 | W30: =('Eingabe Investitionsrechnung'!$D$28-'Eingabe Investitionsrechnung'!$C$28-('Eingabe Investitionsrechnung'!$D$19-'Eingabe Investitionsrechnung'!$C$19)) -> -300 | X30: =('Eingabe Investitionsrechnung'!$D$28-'Eingabe Investitionsrechnung'!$C$28-('Eingabe Investitionsrechnung'!$D$19-'Eingabe Investitionsrechnung'!$C$19)) -> -300 | Y30: =('Eingabe Investitionsrechnung'!$D$28-'Eingabe Investitionsrechnung'!$C$28-('Eingabe Investitionsrechnung'!$D$19-'Eingabe Investitionsrechnung'!$C$19)) -> -300 | Z30: =('Eingabe Investitionsrechnung'!$D$28-'Eingabe Investitionsrechnung'!$C$28-('Eingabe Investitionsrechnung'!$D$19-'Eingabe Investitionsrechnung'!$C$19)) -> -300 | AA30: =('Eingabe Investitionsrechnung'!$D$28-'Eingabe Investitionsrechnung'!$C$28-('Eingabe Investitionsrechnung'!$D$19-'Eingabe Investitionsrechnung'!$C$19)) -> -300 | AB30: =('Eingabe Investitionsrechnung'!$D$28-'Eingabe Investitionsrechnung'!$C$28-('Eingabe Investitionsrechnung'!$D$19-'Eingabe Investitionsrechnung'!$C$19)) -> -300 | AC30: =('Eingabe Investitionsrechnung'!$D$28-'Eingabe Investitionsrechnung'!$C$28-('Eingabe Investitionsrechnung'!$D$19-'Eingabe Investitionsrechnung'!$C$19)) -> -300 | AD30: =('Eingabe Investitionsrechnung'!$D$28-'Eingabe Investitionsrechnung'!$C$28-('Eingabe Investitionsrechnung'!$D$19-'Eingabe Investitionsrechnung'!$C$19)) -> -300 | AE30: =('Eingabe Investitionsrechnung'!$D$28-'Eingabe Investitionsrechnung'!$C$28-('Eingabe Investitionsrechnung'!$D$19-'Eingabe Investitionsrechnung'!$C$19)) -> -300 | AF30: =('Eingabe Investitionsrechnung'!$D$28-'Eingabe Investitionsrechnung'!$C$28-('Eingabe Investitionsrechnung'!$D$19-'Eingabe Investitionsrechnung'!$C$19)) -> -300
A31: jährliche Einsparung Energiekosten | B31: 0 | C31: =-('Eingabe Investitionsrechnung'!$C$21*'Eingabe Investitionsrechnung'!$C$22)/100*((1+'Eingabe Investitionsrechnung'!$C$23)^'Berechnungstabelle - Neuinves'!C$26)+((('Eingabe Investitionsrechnung'!$D$21*'Eingabe Investitionsrechnung'!$D$22)/100*((1+'Eingabe Investitionsrechnung'!$D$23)^'Berechnungstabelle - Neuinves'!C$26)))-('Eingabe Investitionsrechnung'!$D$19-'Eingabe Investitionsrechnung'!$C$19) -> -1130.5 | D31: =-('Eingabe Investitionsrechnung'!$C$21*'Eingabe Investitionsrechnung'!$C$22)/100*((1+'Eingabe Investitionsrechnung'!$C$23)^'Berechnungstabelle - Neuinves'!D$26)+((('Eingabe Investitionsrechnung'!$D$21*'Eingabe Investitionsrechnung'!$D$22)/100*((1+'Eingabe Investitionsrechnung'!$D$23)^'Berechnungstabelle - Neuinves'!D$26)))-('Eingabe Investitionsrechnung'!$D$19-'Eingabe Investitionsrechnung'!$C$19) -> -1269.54769 | E31: =-('Eingabe Investitionsrechnung'!$C$21*'Eingabe Investitionsrechnung'!$C$22)/100*((1+'Eingabe Investitionsrechnung'!$C$23)^'Berechnungstabelle - Neuinves'!E$26)+((('Eingabe Investitionsrechnung'!$D$21*'Eingabe Investitionsrechnung'!$D$22)/100*((1+'Eingabe Investitionsrechnung'!$D$23)^'Berechnungstabelle - Neuinves'!E$26)))-('Eingabe Investitionsrechnung'!$D$19-'Eingabe Investitionsrechnung'!$C$19) -> -1417.639317 | F31: =-('Eingabe Investitionsrechnung'!$C$21*'Eingabe Investitionsrechnung'!$C$22)/100*((1+'Eingabe Investitionsrechnung'!$C$23)^'Berechnungstabelle - Neuinves'!F$26)+((('Eingabe Investitionsrechnung'!$D$21*'Eingabe Investitionsrechnung'!$D$22)/100*((1+'Eingabe Investitionsrechnung'!$D$23)^'Berechnungstabelle - Neuinves'!F$26)))-('Eingabe Investitionsrechnung'!$D$19-'Eingabe Investitionsrechnung'!$C$19) -> -1575.298986 | G31: =-('Eingabe Investitionsrechnung'!$C$21*'Eingabe Investitionsrechnung'!$C$22)/100*((1+'Eingabe Investitionsrechnung'!$C$23)^'Berechnungstabelle - Neuinves'!G$26)+((('Eingabe Investitionsrechnung'!$D$21*'Eingabe Investitionsrechnung'!$D$22)/100*((1+'Eingabe Investitionsrechnung'!$D$23)^'Berechnungstabelle - Neuinves'!G$26)))-('Eingabe Investitionsrechnung'!$D$19-'Eingabe Investitionsrechnung'!$C$19) -> -1743.080212 | H31: =-('Eingabe Investitionsrechnung'!$C$21*'Eingabe Investitionsrechnung'!$C$22)/100*((1+'Eingabe Investitionsrechnung'!$C$23)^'Berechnungstabelle - Neuinves'!H$26)+((('Eingabe Investitionsrechnung'!$D$21*'Eingabe Investitionsrechnung'!$D$22)/100*((1+'Eingabe Investitionsrechnung'!$D$23)^'Berechnungstabelle - Neuinves'!H$26)))-('Eingabe Investitionsrechnung'!$D$19-'Eingabe Investitionsrechnung'!$C$19) -> -1921.567549 | I31: =-('Eingabe Investitionsrechnung'!$C$21*'Eingabe Investitionsrechnung'!$C$22)/100*((1+'Eingabe Investitionsrechnung'!$C$23)^'Berechnungstabelle - Neuinves'!I$26)+((('Eingabe Investitionsrechnung'!$D$21*'Eingabe Investitionsrechnung'!$D$22)/100*((1+'Eingabe Investitionsrechnung'!$D$23)^'Berechnungstabelle - Neuinves'!I$26)))-('Eingabe Investitionsrechnung'!$D$19-'Eingabe Investitionsrechnung'!$C$19) -> -2111.378317 | J31: =-('Eingabe Investitionsrechnung'!$C$21*'Eingabe Investitionsrechnung'!$C$22)/100*((1+'Eingabe Investitionsrechnung'!$C$23)^'Berechnungstabelle - Neuinves'!J$26)+((('Eingabe Investitionsrechnung'!$D$21*'Eingabe Investitionsrechnung'!$D$22)/100*((1+'Eingabe Investitionsrechnung'!$D$23)^'Berechnungstabelle - Neuinves'!J$26)))-('Eingabe Investitionsrechnung'!$D$19-'Eingabe Investitionsrechnung'!$C$19) -> -2313.164421 | K31: =-('Eingabe Investitionsrechnung'!$C$21*'Eingabe Investitionsrechnung'!$C$22)/100*((1+'Eingabe Investitionsrechnung'!$C$23)^'Berechnungstabelle - Neuinves'!K$26)+((('Eingabe Investitionsrechnung'!$D$21*'Eingabe Investitionsrechnung'!$D$22)/100*((1+'Eingabe Investitionsrechnung'!$D$23)^'Berechnungstabelle - Neuinves'!K$26)))-('Eingabe Investitionsrechnung'!$D$19-'Eingabe Investitionsrechnung'!$C$19) -> -2527.614274 | L31: =-('Eingabe Investitionsrechnung'!$C$21*'Eingabe Investitionsrechnung'!$C$22)/100*((1+'Eingabe Investitionsrechnung'!$C$23)^'Berechnungstabelle - Neuinves'!L$26)+((('Eingabe Investitionsrechnung'!$D$21*'Eingabe Investitionsrechnung'!$D$22)/100*((1+'Eingabe Investitionsrechnung'!$D$23)^'Berechnungstabelle - Neuinves'!L$26)))-('Eingabe Investitionsrechnung'!$D$19-'Eingabe Investitionsrechnung'!$C$19) -> -2755.454816 | M31: =-('Eingabe Investitionsrechnung'!$C$21*'Eingabe Investitionsrechnung'!$C$22)/100*((1+'Eingabe Investitionsrechnung'!$C$23)^'Berechnungstabelle - Neuinves'!M$26)+((('Eingabe Investitionsrechnung'!$D$21*'Eingabe Investitionsrechnung'!$D$22)/100*((1+'Eingabe Investitionsrechnung'!$D$23)^'Berechnungstabelle - Neuinves'!M$26)))-('Eingabe Investitionsrechnung'!$D$19-'Eingabe Investitionsrechnung'!$C$19) -> -2997.453665 | N31: =-('Eingabe Investitionsrechnung'!$C$21*'Eingabe Investitionsrechnung'!$C$22)/100*((1+'Eingabe Investitionsrechnung'!$C$23)^'Berechnungstabelle - Neuinves'!N$26)+((('Eingabe Investitionsrechnung'!$D$21*'Eingabe Investitionsrechnung'!$D$22)/100*((1+'Eingabe Investitionsrechnung'!$D$23)^'Berechnungstabelle - Neuinves'!N$26)))-('Eingabe Investitionsrechnung'!$D$19-'Eingabe Investitionsrechnung'!$C$19) -> -3254.421362 | O31: =-('Eingabe Investitionsrechnung'!$C$21*'Eingabe Investitionsrechnung'!$C$22)/100*((1+'Eingabe Investitionsrechnung'!$C$23)^'Berechnungstabelle - Neuinves'!O$26)+((('Eingabe Investitionsrechnung'!$D$21*'Eingabe Investitionsrechnung'!$D$22)/100*((1+'Eingabe Investitionsrechnung'!$D$23)^'Berechnungstabelle - Neuinves'!O$26)))-('Eingabe Investitionsrechnung'!$D$19-'Eingabe Investitionsrechnung'!$C$19) -> -3527.213764 | P31: =-('Eingabe Investitionsrechnung'!$C$21*'Eingabe Investitionsrechnung'!$C$22)/100*((1+'Eingabe Investitionsrechnung'!$C$23)^'Berechnungstabelle - Neuinves'!P$26)+((('Eingabe Investitionsrechnung'!$D$21*'Eingabe Investitionsrechnung'!$D$22)/100*((1+'Eingabe Investitionsrechnung'!$D$23)^'Berechnungstabelle - Neuinves'!P$26)))-('Eingabe Investitionsrechnung'!$D$19-'Eingabe Investitionsrechnung'!$C$19) -> -3816.734551 | Q31: =-('Eingabe Investitionsrechnung'!$C$21*'Eingabe Investitionsrechnung'!$C$22)/100*((1+'Eingabe Investitionsrechnung'!$C$23)^'Berechnungstabelle - Neuinves'!Q$26)+((('Eingabe Investitionsrechnung'!$D$21*'Eingabe Investitionsrechnung'!$D$22)/100*((1+'Eingabe Investitionsrechnung'!$D$23)^'Berechnungstabelle - Neuinves'!Q$26)))-('Eingabe Investitionsrechnung'!$D$19-'Eingabe Investitionsrechnung'!$C$19) -> -4123.937883 | R31: =-('Eingabe Investitionsrechnung'!$C$21*'Eingabe Investitionsrechnung'!$C$22)/100*((1+'Eingabe Investitionsrechnung'!$C$23)^'Berechnungstabelle - Neuinves'!R$26)+((('Eingabe Investitionsrechnung'!$D$21*'Eingabe Investitionsrechnung'!$D$22)/100*((1+'Eingabe Investitionsrechnung'!$D$23)^'Berechnungstabelle - Neuinves'!R$26)))-('Eingabe Investitionsrechnung'!$D$19-'Eingabe Investitionsrechnung'!$C$19) -> -4449.831201 | S31: =-('Eingabe Investitionsrechnung'!$C$21*'Eingabe Investitionsrechnung'!$C$22)/100*((1+'Eingabe Investitionsrechnung'!$C$23)^'Berechnungstabelle - Neuinves'!S$26)+((('Eingabe Investitionsrechnung'!$D$21*'Eingabe Investitionsrechnung'!$D$22)/100*((1+'Eingabe Investitionsrechnung'!$D$23)^'Berechnungstabelle - Neuinves'!S$26)))-('Eingabe Investitionsrechnung'!$D$19-'Eingabe Investitionsrechnung'!$C$19) -> -4795.478179 | T31: =-('Eingabe Investitionsrechnung'!$C$21*'Eingabe Investitionsrechnung'!$C$22)/100*((1+'Eingabe Investitionsrechnung'!$C$23)^'Berechnungstabelle - Neuinves'!T$26)+((('Eingabe Investitionsrechnung'!$D$21*'Eingabe Investitionsrechnung'!$D$22)/100*((1+'Eingabe Investitionsrechnung'!$D$23)^'Berechnungstabelle - Neuinves'!T$26)))-('Eingabe Investitionsrechnung'!$D$19-'Eingabe Investitionsrechnung'!$C$19) -> -5162.001847 | U31: =-('Eingabe Investitionsrechnung'!$C$21*'Eingabe Investitionsrechnung'!$C$22)/100*((1+'Eingabe Investitionsrechnung'!$C$23)^'Berechnungstabelle - Neuinves'!U$26)+((('Eingabe Investitionsrechnung'!$D$21*'Eingabe Investitionsrechnung'!$D$22)/100*((1+'Eingabe Investitionsrechnung'!$D$23)^'Berechnungstabelle - Neuinves'!U$26)))-('Eingabe Investitionsrechnung'!$D$19-'Eingabe Investitionsrechnung'!$C$19) -> -5550.587881 | V31: =-('Eingabe Investitionsrechnung'!$C$21*'Eingabe Investitionsrechnung'!$C$22)/100*((1+'Eingabe Investitionsrechnung'!$C$23)^'Berechnungstabelle - Neuinves'!V$26)+((('Eingabe Investitionsrechnung'!$D$21*'Eingabe Investitionsrechnung'!$D$22)/100*((1+'Eingabe Investitionsrechnung'!$D$23)^'Berechnungstabelle - Neuinves'!V$26)))-('Eingabe Investitionsrechnung'!$D$19-'Eingabe Investitionsrechnung'!$C$19) -> -5962.488077 | W31: =-('Eingabe Investitionsrechnung'!$C$21*'Eingabe Investitionsrechnung'!$C$22)/100*((1+'Eingabe Investitionsrechnung'!$C$23)^'Berechnungstabelle - Neuinves'!W$26)+((('Eingabe Investitionsrechnung'!$D$21*'Eingabe Investitionsrechnung'!$D$22)/100*((1+'Eingabe Investitionsrechnung'!$D$23)^'Berechnungstabelle - Neuinves'!W$26)))-('Eingabe Investitionsrechnung'!$D$19-'Eingabe Investitionsrechnung'!$C$19) -> -6399.024015 | X31: =-('Eingabe Investitionsrechnung'!$C$21*'Eingabe Investitionsrechnung'!$C$22)/100*((1+'Eingabe Investitionsrechnung'!$C$23)^'Berechnungstabelle - Neuinves'!X$26)+((('Eingabe Investitionsrechnung'!$D$21*'Eingabe Investitionsrechnung'!$D$22)/100*((1+'Eingabe Investitionsrechnung'!$D$23)^'Berechnungstabelle - Neuinves'!X$26)))-('Eingabe Investitionsrechnung'!$D$19-'Eingabe Investitionsrechnung'!$C$19) -> -6861.590935 | Y31: =-('Eingabe Investitionsrechnung'!$C$21*'Eingabe Investitionsrechnung'!$C$22)/100*((1+'Eingabe Investitionsrechnung'!$C$23)^'Berechnungstabelle - Neuinves'!Y$26)+((('Eingabe Investitionsrechnung'!$D$21*'Eingabe Investitionsrechnung'!$D$22)/100*((1+'Eingabe Investitionsrechnung'!$D$23)^'Berechnungstabelle - Neuinves'!Y$26)))-('Eingabe Investitionsrechnung'!$D$19-'Eingabe Investitionsrechnung'!$C$19) -> -7351.661811 | Z31: =-('Eingabe Investitionsrechnung'!$C$21*'Eingabe Investitionsrechnung'!$C$22)/100*((1+'Eingabe Investitionsrechnung'!$C$23)^'Berechnungstabelle - Neuinves'!Z$26)+((('Eingabe Investitionsrechnung'!$D$21*'Eingabe Investitionsrechnung'!$D$22)/100*((1+'Eingabe Investitionsrechnung'!$D$23)^'Berechnungstabelle - Neuinves'!Z$26)))-('Eingabe Investitionsrechnung'!$D$19-'Eingabe Investitionsrechnung'!$C$19) -> -7870.791667 | AA31: =-('Eingabe Investitionsrechnung'!$C$21*'Eingabe Investitionsrechnung'!$C$22)/100*((1+'Eingabe Investitionsrechnung'!$C$23)^'Berechnungstabelle - Neuinves'!AA$26)+((('Eingabe Investitionsrechnung'!$D$21*'Eingabe Investitionsrechnung'!$D$22)/100*((1+'Eingabe Investitionsrechnung'!$D$23)^'Berechnungstabelle - Neuinves'!AA$26)))-('Eingabe Investitionsrechnung'!$D$19-'Eingabe Investitionsrechnung'!$C$19) -> -8420.622122 | AB31: =-('Eingabe Investitionsrechnung'!$C$21*'Eingabe Investitionsrechnung'!$C$22)/100*((1+'Eingabe Investitionsrechnung'!$C$23)^'Berechnungstabelle - Neuinves'!AB$26)+((('Eingabe Investitionsrechnung'!$D$21*'Eingabe Investitionsrechnung'!$D$22)/100*((1+'Eingabe Investitionsrechnung'!$D$23)^'Berechnungstabelle - Neuinves'!AB$26)))-('Eingabe Investitionsrechnung'!$D$19-'Eingabe Investitionsrechnung'!$C$19) -> -9002.886191 | AC31: =-('Eingabe Investitionsrechnung'!$C$21*'Eingabe Investitionsrechnung'!$C$22)/100*((1+'Eingabe Investitionsrechnung'!$C$23)^'Berechnungstabelle - Neuinves'!AC$26)+((('Eingabe Investitionsrechnung'!$D$21*'Eingabe Investitionsrechnung'!$D$22)/100*((1+'Eingabe Investitionsrechnung'!$D$23)^'Berechnungstabelle - Neuinves'!AC$26)))-('Eingabe Investitionsrechnung'!$D$19-'Eingabe Investitionsrechnung'!$C$19) -> -9619.413348 | AD31: =-('Eingabe Investitionsrechnung'!$C$21*'Eingabe Investitionsrechnung'!$C$22)/100*((1+'Eingabe Investitionsrechnung'!$C$23)^'Berechnungstabelle - Neuinves'!AD$26)+((('Eingabe Investitionsrechnung'!$D$21*'Eingabe Investitionsrechnung'!$D$22)/100*((1+'Eingabe Investitionsrechnung'!$D$23)^'Berechnungstabelle - Neuinves'!AD$26)))-('Eingabe Investitionsrechnung'!$D$19-'Eingabe Investitionsrechnung'!$C$19) -> -10272.13487 | AE31: =-('Eingabe Investitionsrechnung'!$C$21*'Eingabe Investitionsrechnung'!$C$22)/100*((1+'Eingabe Investitionsrechnung'!$C$23)^'Berechnungstabelle - Neuinves'!AE$26)+((('Eingabe Investitionsrechnung'!$D$21*'Eingabe Investitionsrechnung'!$D$22)/100*((1+'Eingabe Investitionsrechnung'!$D$23)^'Berechnungstabelle - Neuinves'!AE$26)))-('Eingabe Investitionsrechnung'!$D$19-'Eingabe Investitionsrechnung'!$C$19) -> -10963.08949 | AF31: =-('Eingabe Investitionsrechnung'!$C$21*'Eingabe Investitionsrechnung'!$C$22)/100*((1+'Eingabe Investitionsrechnung'!$C$23)^'Berechnungstabelle - Neuinves'!AF$26)+((('Eingabe Investitionsrechnung'!$D$21*'Eingabe Investitionsrechnung'!$D$22)/100*((1+'Eingabe Investitionsrechnung'!$D$23)^'Berechnungstabelle - Neuinves'!AF$26)))-('Eingabe Investitionsrechnung'!$D$19-'Eingabe Investitionsrechnung'!$C$19) -> -11694.42933
A32: Einsparung Energiekosten nach Nutzungsdauer | B32: =B31*B42 -> 0 | C32: =C31*C42 -> -1130.5 | D32: =D31*D42 -> -1269.54769 | E32: -1417.639317 | F32: -1575.298986 | G32: -1743.080212 | H32: -1921.567549 | I32: -2111.378317 | J32: -2313.164421 | K32: -2527.614274 | L32: -2755.454816 | M32: -2997.453665 | N32: -3254.421362 | O32: -3527.213764 | P32: -3816.734551 | Q32: -4123.937883 | R32: -4449.831201 | S32: -4795.478179 | T32: -5162.001847 | U32: -5550.587881 | V32: -5962.488077 | W32: 0 | X32: 0 | Y32: 0 | Z32: 0 | AA32: 0 | AB32: 0 | AC32: 0 | AD32: 0 | AE32: 0 | AF32: 0
A33: Kostenvorteil Nebenkosten & sont. Erträge nach Nutzungsdauer | B33: 0 | C33: =C30*C42 -> -300 | D33: =D30*D42 -> -300 | E33: -300 | F33: -300 | G33: -300 | H33: -300 | I33: -300 | J33: -300 | K33: -300 | L33: -300 | M33: -300 | N33: -300 | O33: -300 | P33: -300 | Q33: -300 | R33: -300 | S33: -300 | T33: -300 | U33: -300 | V33: -300 | W33: 0 | X33: 0 | Y33: 0 | Z33: 0 | AA33: 0 | AB33: 0 | AC33: 0 | AD33: 0 | AE33: 0 | AF33: 0
A34: Sonstige Einmalkosten | B34: ='Eingabe Investitionsrechnung'!C29*B42 -> 0
A35: Summe Aus- und Einzahlungen | B35: =-B28-B34 -> 0 | C35: =-C28+C33+C32 -> -1430.5 | D35: =-D28+D33+D32 -> -1569.54769 | E35: -1717.639317 | F35: -1875.298986 | G35: -2043.080212 | H35: -2221.567549 | I35: -2411.378317 | J35: -2613.164421 | K35: -2827.614274 | L35: -3055.454816 | M35: -3297.453665 | N35: -3554.421362 | O35: -3827.213764 | P35: -4116.734551 | Q35: -4423.937883 | R35: -4749.831201 | S35: -5095.478179 | T35: -5462.001847 | U35: -5850.587881 | V35: -6262.488077 | W35: 0 | X35: 0 | Y35: 0 | Z35: 0 | AA35: 0 | AB35: 0 | AC35: 0 | AD35: 0 | AE35: 0 | AF35: 0
A36: Barwertfaktor | B36: 1 | C36: =1/(1+'Eingabe Investitionsrechnung'!$C$17)^'Berechnungstabelle - Neuinves'!C26 -> 0.9794319295 | D36: =1/(1+'Eingabe Investitionsrechnung'!$C$17)^'Berechnungstabelle - Neuinves'!D26 -> 0.9592869045 | E36: =1/(1+'Eingabe Investitionsrechnung'!$C$17)^'Berechnungstabelle - Neuinves'!E26 -> 0.9395562238 | F36: =1/(1+'Eingabe Investitionsrechnung'!$C$17)^'Berechnungstabelle - Neuinves'!F26 -> 0.9202313651 | G36: =1/(1+'Eingabe Investitionsrechnung'!$C$17)^'Berechnungstabelle - Neuinves'!G26 -> 0.9013039815 | H36: =1/(1+'Eingabe Investitionsrechnung'!$C$17)^'Berechnungstabelle - Neuinves'!H26 -> 0.8827658977 | I36: =1/(1+'Eingabe Investitionsrechnung'!$C$17)^'Berechnungstabelle - Neuinves'!I26 -> 0.8646091064 | J36: =1/(1+'Eingabe Investitionsrechnung'!$C$17)^'Berechnungstabelle - Neuinves'!J26 -> 0.8468257653 | K36: =1/(1+'Eingabe Investitionsrechnung'!$C$17)^'Berechnungstabelle - Neuinves'!K26 -> 0.8294081933 | L36: =1/(1+'Eingabe Investitionsrechnung'!$C$17)^'Berechnungstabelle - Neuinves'!L26 -> 0.8123488671 | M36: =1/(1+'Eingabe Investitionsrechnung'!$C$17)^'Berechnungstabelle - Neuinves'!M26 -> 0.7956404183 | N36: =1/(1+'Eingabe Investitionsrechnung'!$C$17)^'Berechnungstabelle - Neuinves'!N26 -> 0.7792756301 | O36: =1/(1+'Eingabe Investitionsrechnung'!$C$17)^'Berechnungstabelle - Neuinves'!O26 -> 0.763247434 | P36: =1/(1+'Eingabe Investitionsrechnung'!$C$17)^'Berechnungstabelle - Neuinves'!P26 -> 0.7475489069 | Q36: =1/(1+'Eingabe Investitionsrechnung'!$C$17)^'Berechnungstabelle - Neuinves'!Q26 -> 0.7321732683 | R36: =1/(1+'Eingabe Investitionsrechnung'!$C$17)^'Berechnungstabelle - Neuinves'!R26 -> 0.7171138769 | S36: =1/(1+'Eingabe Investitionsrechnung'!$C$17)^'Berechnungstabelle - Neuinves'!S26 -> 0.7023642281 | T36: =1/(1+'Eingabe Investitionsrechnung'!$C$17)^'Berechnungstabelle - Neuinves'!T26 -> 0.6879179511 | U36: =1/(1+'Eingabe Investitionsrechnung'!$C$17)^'Berechnungstabelle - Neuinves'!U26 -> 0.6737688062 | V36: =1/(1+'Eingabe Investitionsrechnung'!$C$17)^'Berechnungstabelle - Neuinves'!V26 -> 0.6599106818 | W36: =1/(1+'Eingabe Investitionsrechnung'!$C$17)^'Berechnungstabelle - Neuinves'!W26 -> 0.6463375924 | X36: =1/(1+'Eingabe Investitionsrechnung'!$C$17)^'Berechnungstabelle - Neuinves'!X26 -> 0.6330436752 | Y36: =1/(1+'Eingabe Investitionsrechnung'!$C$17)^'Berechnungstabelle - Neuinves'!Y26 -> 0.6200231883 | Z36: =1/(1+'Eingabe Investitionsrechnung'!$C$17)^'Berechnungstabelle - Neuinves'!Z26 -> 0.6072705076 | AA36: =1/(1+'Eingabe Investitionsrechnung'!$C$17)^'Berechnungstabelle - Neuinves'!AA26 -> 0.594780125 | AB36: =1/(1+'Eingabe Investitionsrechnung'!$C$17)^'Berechnungstabelle - Neuinves'!AB26 -> 0.5825466454 | AC36: =1/(1+'Eingabe Investitionsrechnung'!$C$17)^'Berechnungstabelle - Neuinves'!AC26 -> 0.570564785 | AD36: =1/(1+'Eingabe Investitionsrechnung'!$C$17)^'Berechnungstabelle - Neuinves'!AD26 -> 0.5588293682 | AE36: =1/(1+'Eingabe Investitionsrechnung'!$C$17)^'Berechnungstabelle - Neuinves'!AE26 -> 0.5473353264 | AF36: =1/(1+'Eingabe Investitionsrechnung'!$C$17)^'Berechnungstabelle - Neuinves'!AF26 -> 0.5360776948
A37: Barwerte | B37: =+B36*B35 -> 0 | C37: =+C36*C35 -> -1401.077375 | D37: =+D36*D35 -> -1505.646545 | E37: -1613.81871 | F37: -1725.708946 | G37: -1841.436329 | H37: -1961.124071 | I37: -2084.899652 | J37: -2212.894961 | K37: -2345.246446 | L37: -2482.095258 | M37: -2623.587413 | N37: -2769.873946 | O37: -2921.111084 | P37: -3077.460413 | Q37: -3239.089058 | R37: -3406.169867 | S37: -3578.881598 | T37: -3757.40912 | U37: -3941.943612 | V37: -4132.682777 | W37: 0 | X37: 0 | Y37: 0 | Z37: 0 | AA37: 0 | AB37: 0 | AC37: 0 | AD37: 0 | AE37: 0 | AF37: 0
A38: Kumulierte Barwerte | C38: =+B38+C37 -> -1401.077375 | D38: =+C38+D37 -> -2906.72392 | E38: -4520.54263 | F38: -6246.251576 | G38: -8087.687906 | H38: -10048.81198 | I38: -12133.71163 | J38: -14346.60659 | K38: -16691.85304 | L38: -19173.94829 | M38: -21797.53571 | N38: -24567.40965 | O38: -27488.52074 | P38: -30565.98115 | Q38: -33805.07021 | R38: -37211.24008 | S38: -40790.12167 | T38: -44547.53079 | U38: -48489.47441 | V38: -52622.15718 | W38: -52622.15718 | X38: -52622.15718 | Y38: -52622.15718 | Z38: -52622.15718 | AA38: -52622.15718 | AB38: -52622.15718 | AC38: -52622.15718 | AD38: -52622.15718 | AE38: -52622.15718 | AF38: -52622.15718
A39: Negative Jahre | B39: 0 | C39: =+IF(C38<0,1,0) -> 1 | D39: =+IF(D38<0,1,0) -> 1 | E39: 1 | F39: 1 | G39: 1 | H39: 1 | I39: 1 | J39: 1 | K39: 1 | L39: 1 | M39: 1 | N39: 1 | O39: 1 | P39: 1 | Q39: 1 | R39: 1 | S39: 1 | T39: 1 | U39: 1 | V39: 1 | W39: 1 | X39: 1 | Y39: 1 | Z39: 1 | AA39: 1 | AB39: 1 | AC39: 1 | AD39: 1 | AE39: 1 | AF39: 1
A40: Bruchteil Übergangsjahr | B40: 0 | C40: =IF(AND(A39>0,C39=0),ABS(C38)/(ABS(C38)+D38),0) -> 0 | D40: =IF(AND(B39>0,D39=0),ABS(D38)/(ABS(D38)+E38),0) -> 0 | E40: 0 | F40: 0 | G40: 0 | H40: 0 | I40: 0 | J40: 0 | K40: 0 | L40: 0 | M40: 0 | N40: 0 | O40: 0 | P40: 0 | Q40: 0 | R40: 0 | S40: 0 | T40: 0 | U40: 0 | V40: 0 | W40: 0 | X40: 0 | Y40: 0 | Z40: 0 | AA40: 0 | AB40: 0 | AC40: 0 | AD40: 0 | AE40: 0 | AF40: 0
A41: Nutzungsdauer | B41: - | C41: ='Eingabe Investitionsrechnung'!D16 -> 20 | D41: =C41-1 -> 19 | E41: =D41-1 -> 18 | F41: 17 | G41: 16 | H41: 15 | I41: 14 | J41: 13 | K41: 12 | L41: 11 | M41: 10 | N41: 9 | O41: 8 | P41: 7 | Q41: 6 | R41: 5 | S41: 4 | T41: 3 | U41: 2 | V41: 1 | W41: 0 | X41: -1 | Y41: -2 | Z41: -3 | AA41: -4 | AB41: -5 | AC41: -6 | AD41: -7 | AE41: -8 | AF41: -9
A42: Aktive Laufzeit | B42: =B19 -> 1 | C42: =IF(C41>0,1,0) -> 1 | D42: =IF(D41>0,1,0) -> 1 | E42: 1 | F42: 1 | G42: 1 | H42: 1 | I42: 1 | J42: 1 | K42: 1 | L42: 1 | M42: 1 | N42: 1 | O42: 1 | P42: 1 | Q42: 1 | R42: 1 | S42: 1 | T42: 1 | U42: 1 | V42: 1 | W42: 0 | X42: 0 | Y42: 0 | Z42: 0 | AA42: 0 | AB42: 0 | AC42: 0 | AD42: 0 | AE42: 0 | AF42: 0
A43: Kumulierte Barwerte - Weiterbetrieb Altanlage | C43: =IF(C37<0,C38,"-") -> -1401.077375 | D43: =IF(D37<0,D38,"") -> -2906.72392 | E43: -4520.54263 | F43: -6246.251576 | G43: -8087.687906 | H43: -10048.81198 | I43: -12133.71163 | J43: -14346.60659 | K43: -16691.85304 | L43: -19173.94829 | M43: -21797.53571 | N43: -24567.40965 | O43: -27488.52074 | P43: -30565.98115 | Q43: -33805.07021 | R43: -37211.24008 | S43: -40790.12167 | T43: -44547.53079 | U43: -48489.47441 | V43: -52622.15718
A44: Grafik - Kalenderjahr | B44: ='Eingabe Investitionsrechnung'!C15 -> 2023 | C44: =IF(C42>0,B44+C42,"") -> 2024 | D44: =IF(D42>0,C44+D42,"") -> 2025 | E44: 2026 | F44: 2027 | G44: 2028 | H44: 2029 | I44: 2030 | J44: 2031 | K44: 2032 | L44: 2033 | M44: 2034 | N44: 2035 | O44: 2036 | P44: 2037 | Q44: 2038 | R44: 2039 | S44: 2040 | T44: 2041 | U44: 2042 | V44: 2043
A46: Grafik Barwerte Neuinvestition vs. Altanlage
B47: =B21 -> 2023 | C47: 2024 | D47: 2025 | E47: 2026 | F47: 2027 | G47: 2028 | H47: 2029 | I47: 2030 | J47: 2031 | K47: 2032 | L47: 2033 | M47: 2034 | N47: 2035 | O47: 2036 | P47: 2037 | Q47: 2038 | R47: 2039 | S47: 2040 | T47: 2041 | U47: 2042 | V47: 2043
A48: =A20 -> Kumulierte Barwerte - Neuinvestition | B48: =B20 -> -12200 | C48: -10798.92262 | D48: -9293.27608 | E48: -7679.45737 | F48: -5953.748424 | G48: -4112.312094 | H48: -2151.188023 | I48: -66.28837112 | J48: 2146.60659 | K48: 4491.853036 | L48: 6973.948294 | M48: 9597.535707 | N48: 12367.40965 | O48: 15288.52074 | P48: 18365.98115 | Q48: 21605.07021 | R48: 25011.24008 | S48: 28590.12167 | T48: 32347.53079 | U48: 36289.47441 | V48: 40422.15718
A49: =A43 -> Kumulierte Barwerte - Weiterbetrieb Altanlage | B49: =B43 -> 0 | C49: -1401.077375 | D49: -2906.72392 | E49: -4520.54263 | F49: -6246.251576 | G49: -8087.687906 | H49: -10048.81198 | I49: -12133.71163 | J49: -14346.60659 | K49: -16691.85304 | L49: -19173.94829 | M49: -21797.53571 | N49: -24567.40965 | O49: -27488.52074 | P49: -30565.98115 | Q49: -33805.07021 | R49: -37211.24008 | S49: -40790.12167 | T49: -44547.53079 | U49: -48489.47441 | V49: -52622.15718
A51: Grafik Energiekosen Neuinvestition vs. Altanlage
B52: =B21 -> 2023 | C52: 2024 | D52: 2025 | E52: 2026 | F52: 2027 | G52: 2028 | H52: 2029 | I52: 2030 | J52: 2031 | K52: 2032 | L52: 2033 | M52: 2034 | N52: 2035 | O52: 2036 | P52: 2037 | Q52: 2038 | R52: 2039 | S52: 2040 | T52: 2041 | U52: 2042 | V52: 2043
A53: =A6 -> Jährliche Energiekosten nach Nutzungsdauer - Neuinvestition | B53: =B6 -> 0 | C53: 2035.4 | D53: 2071.42658 | E53: 2108.09083 | F53: 2145.404038 | G53: 2183.37769 | H53: 2222.023475 | I53: 2261.35329 | J53: 2301.379243 | K53: 2342.113656 | L53: 2383.569068 | M53: 2425.75824 | N53: 2468.694161 | O53: 2512.390048 | P53: 2556.859352 | Q53: 2602.115762 | R53: 2648.173211 | S53: 2695.045877 | T53: 2742.748189 | U53: 2791.294832 | V53: 2840.700751 | W53: 0 | X53: 0 | Y53: 0 | Z53: 0 | AA53: 0 | AB53: 0 | AC53: 0 | AD53: 0 | AE53: 0 | AF53: 0
A54: =A29 -> Jährliche Energiekosten nach Nutzungsdauer - Weiterbetrieb Altanlage | B54: =B29 -> 0 | C54: 3165.9 | D54: 3340.97427 | E54: 3525.730147 | F54: 3720.703024 | G54: 3926.457902 | H54: 4143.591023 | I54: 4372.731607 | J54: 4614.543665 | K54: 4869.72793 | L54: 5139.023884 | M54: 5423.211905 | N54: 5723.115523 | O54: 6039.603812 | P54: 6373.593902 | Q54: 6726.053645 | R54: 7098.004412 | S54: 7490.524056 | T54: 7904.750036 | U54: 8341.882713 | V54: 8803.188827 | W54: 0 | X54: 0 | Y54: 0 | Z54: 0 | AA54: 0 | AB54: 0 | AC54: 0 | AD54: 0 | AE54: 0 | AF54: 0

Sheet Kapitalstruktur
A1: Kapitalstruktur-Berechnung*
B3: Kalkulationswerte | C3: Eigenkapital | D3: Fremdkapital
A4: Kapitalstruktur p.a. | C4: 0.3 | D4: =1-C4 -> 0.7
A5: Rendite/Zinssatz, risikofrei** | C5: 0.0046 | D5: 0.051
A6: Investitions-Risiko-Aufschlag | C6: 0.035 | D6: 0
A7: Kapitalkosten vor Steuern | C7: =SUM(C5:C6) -> 0.0396 | D7: =SUM(D5:D6) -> 0.051
A8: Körperschaftssteuer 15% | B8: 0.15 | C8: =$B$8*$C$7/(1-$B$8) -> 0.006988235294 | D8: =$B$8*$D$7/(1-$B$8) -> 0.009
A9: Solidaritätszuschlag 0,83% | B9: 0.0083 | C9: =$B$9*C7/(1-$B$9) -> 0.0003314308763 | D9: =$B$9*D7/(1-$B$9) -> 0.0004268427952
A10: Kapitalkosten nach Steuern | C10: =SUM(C7:C9) -> 0.04691966617 | D10: =SUM(D7:D9) -> 0.0604268428
A11: Gewichteter Kapitalsturkturzins | C11: =C10*C4+D10*D4 -> 0.05637468981
A12: Jährliche Inflation | C12: ='NEU2023 Destatis Inflation'!C43 -> 0.015
A13: kalkulatorischer Zinssatz inflationsbereinigt, nach Steuern = | C13: =$C$11-$C$12 -> 0.04137468981
A17: Quellenverzeichnis
A18: ** Quelle: Rendite Bundeswertpapier - Stand: 09/2021 siehe https://www.bundesbank.de/de/statistiken/geld-und-kapitalmaerkte/zinssaetze-und-renditen/zinsstruktur-am-rentenmarkt
A19: Eigenkapitalrendite, siehe Tabellenblatt | B19: Fremdkapital Zins, siehe Tabellenblatt
A20: Rendite_10Jahr_Bundeswertpapier | B20: FK_bis_5Jahre
A22: Jährliche Inflation, siehe Tabellenblatt
A23: DESTATIS_Inflation

Sheet Grafiken
A1: Ergebnisgrafiken Investitionsprojekt

Sheet Quelle
B1: Übersicht Energieträger-Durchschnittspreise
C4: Betrachtetes Jahr | D4: 2023
B5: Energieträgerauswahl | C5: Preis | D5: Quelle:
C6: Cent / kWh | D6: Siehe Tabelle Prognosen_Nominal
A7: 1 | B7: Heizöl leicht Haushalte (ct/kWh) | C7: 8.37 | D7: Siehe Tabelle Prognosen_Nominal
A8: 2 | B8: Diesel Haushalte (ct/kWh) | C8: 15.31 | D8: Siehe Tabelle Prognosen_Nominal
A9: 3 | B9: Super Benzin Haushalte (ct/kWh) | C9: 19.29 | D9: Siehe Tabelle Prognosen_Nominal
A10: 4 | B10: Erdgas Haushalte | C10: 13.55 | D10: Siehe Tabelle Prognosen_Nominal
A11: 5 | B11: Erdgas Industrie | C11: 6.29 | D11: Siehe Tabelle Prognosen_Nominal
A12: 6 | B12: Strom Haushalte | C12: 37.68 | D12: Siehe Tabelle Prognosen_Nominal
A13: 7 | B13: Wärmepumpenstrom Haushalte | C13: 27.94 | D13: Siehe Tabelle Prognosen_Nominal
A14: 8 | B14: Nachtspeicher Haushalte | C14: 26.7 | D14: Siehe Tabelle Prognosen_Nominal
A15: 9 | B15: Holzpellets Haushalt (5t) | C15: 7 | D15: Siehe Tabelle Prognosen_Nominal
A16: 10 | B16: Hackschnitzel Haushalt | C16: 4.04 | D16: Siehe Tabelle Prognosen_Nominal
A17: 11 | B17: Gewerbestrom | C17: 29.92 | D17: Siehe Tabelle Prognosen_Nominal
A18: 12 | B18: Industrie KMU (100 und 500 MWh) | C18: 22.18 | D18: Siehe Tabelle Prognosen_Nominal
A19: 13 | B19: Energieintensiv (> 1 GWh/a) | C19: 16.39 | D19: Siehe Tabelle Prognosen_Nominal
B24: Arbeitsblatt
C25: Quellenkürzel (Prognosen Nominalkürzel) | D25: Quelle:
B26: "Prognosen_Nominal" | C26: [DEPI 2023] | D26: Deutsches Pelletinstitut (DEPI): "Pelletpreis/Wirtschaftlichkeit", abrufbar im Internet unter: https://www.depi.de/pelletpreis-wirtschaftlichkeit#rrrg, letzter Zugriff am 16.03.2023
C27: [DEPI 2023a] | D27: Deutsches Pelletinstitut (DEPI) https://www.depi.de/p/Hackschnitzelpreis-steigt-im-Sommer-svD2JKSUpGYmhDfWNubApx. Letzter Zugriff 16.03.2023
B28: "Prognosen_Nominal" | C28: [IE 05/2022] | D28: Leipziger Institut für Energie GmbH: Preisbericht für den Energiemarkt in Baden-Württemberg 2021, Endbericht im Auftrag des Ministeriums für Umwelt, Klima und Energiewirtschaft Baden-Württemberg, Leipzig, 20.05.2022.
B29: "Prognosen_Nominal" | C29: [RWI 2019] | D29: RWI Leibniz-Institut für Wirtschaftsforschung: CO2-Bepreisung in den nicht in den Emissionshandel integrierten Sektoren: Optionen für eine sozial ausgewogene Ausgestaltung, Essen, Juli 2019.
B30: "Prognosen_Nominal" | C30: [BEHG 2022] | D30: CO2-Preise gemäß Bundesemissionshandelsgesetz (Brennstoffemissionshandelsgesetz vom 12. Dezember 2019 (BGBl. I S. 2728), das zuletzt durch Artikel 2 des Gesetzes vom 9. November 2022 (BGBl. I S. 2006) geändert worden ist)
B33: "Kapitalstruktur" | C33: Eigenkapitalrendite: https://www.bundesbank.de/de/statistiken/geld-und-kapitalmaerkte/zinssaetze-und-renditen/zinsstruktur-am-rentenmarkt;
B34: "Kapitalstruktur" | C34: Fremdkapitalzinssatz: https://www.bundesbank.de/dynamic/action/de/statistiken/zeitreihen-datenbanken/zeitreihen-datenbank/759778/759778?listId=www_s510_unt4
B35: "Kapitalstruktur" | C35: Jährliche Inflation / Verbraucherpreisindex: © Statistisches Bundesamt (Destatis), 2020 | Stand: 26.11.2020
B36: "Kapitalstruktur" | C36: Rendite Bundeswertpapier - Stand: 10/2020 siehe https://www.bundesbank.de/de/statistiken/geld-und-kapitalmaerkte/zinssaetze-und-renditen/zinsstruktur-am-rentenmarkt
B37: "Kapitalstruktur" | C37: https://pwc-tools.de/kapitalkosten/ | D37: Stand: 19.01.2021
B42: 0.018
B43: 0.019
B44: 0.02
B45: 0.021
B46: 0.022
B47: 0.023
B48: 0.024
B49: 0.025
B50: 0.026
B51: 0.027
B52: 0.028
B53: 0.029
B54: 0.03
B55: 0.031
B56: 0.032
B57: 0.033
B58: 0.034
B59: 0.035
B60: 0.036
B61: 0.037
B62: 0.038
B63: 0.039
B64: 0.04
B65: 0.041
B66: 0.042
B67: 0.043
B68: 0.044
B69: 0.045
B70: 0.046
B71: 0.047
B72: 0.048
B73: 0.049
B74: 0.05
B75: 0.051
B76: 0.052
B77: 0.053
B78: 0.054
B79: 0.055
B80: 0.056
B81: 0.057
B82: 0.058
B83: 0.059
B84: 0.06
B85: 0.061
B86: 0.062
B87: 0.063
B88: 0.064
B89: 0.065
B90: 0.066
B91: 0.067
B92: 0.068
B93: 0.069
B94: 0.07
B95: 0.071
B96: 0.072
B97: 0.073
B98: 0.074
B99: 0.075
B100: 0.076
B101: 0.077
B102: 0.078
B103: 0.079
B104: 0.08
B105: 0.081
B106: 0.082
B107: 0.083
B108: 0.084
B109: 0.085
B110: 0.086
B111: 0.087
B112: 0.088
B113: 0.089
B114: 0.09
B115: 0.091
B116: 0.092
B117: 0.093
B118: 0.094
B119: 0.095
B120: 0.096
B121: 0.097
B122: 0.098
B123: 0.099
B124: 0.1

Sheet Prognosen_Nominal
B1: Prognosen Nominalpreise
B2: OHNE Annahme langjährige Inflationsrate 1,7% (1991 bis 2019)
B3: Haushaltspreise inkl. MWst., Unternehmenspreise ohne MWst. (weil vorsteuerabzugsfähig)
B4: Prognosen zur CO2-Bepreisung ab 2021 berücksichtigt. | M4: Gesamtjahreswachstumsrate
M5: =$K$6-$D$6 -> 7
B6: Energieprodukt | C6: Einheit | D6: 2020 | E6: 2021 | F6: 2022 | G6: 2023 | H6: 2024 | I6: 2025 | J6: 2026 | K6: 2027 | L6: Wachstum | M6: CAGR 7J | N6: Quellen | O6: Anmerkung
A7: 1 | B7: Heizöl leicht Haushalte (ct/kWh) | C7: ct/kWh | D7: =D8/9.8*100 -> 5.102040816 | E7: =E8/9.8*100 -> 7.244897959 | F7: 8.979591837 | G7: 8.367346939 | H7: 8.367346939 | I7: 8.469387755 | J7: 8.673469388 | K7: 8.87755102 | L7: =$K7/$D7-1 -> 0.74 | M7: =($K7/$D7)^(1/$M$5)-1 -> 0.08234116977 | N7: Berechnet mit 1 l Heizöl leicht entspricht 9,8 kWh https://vimtox.de/umrechnung-heizwert-verschiedener-brennstoffe/#:~:text=Die%20verschiedenen%20Brennstoffe%20und%20deren%20Heizwert%20in%20kWh,%204%2C8%20kWh%20%205%20more%20rows%20
A8: 2 | B8: Heizöl leicht Haushalte (€/l) | C8: Euro/l | D8: 0.5 | E8: 0.71 | F8: 0.88 | G8: 0.82 | H8: 0.82 | I8: 0.83 | J8: 0.85 | K8: 0.87 | L8: 0.74 | M8: =($K8/$D8)^(1/$M$5)-1 -> 0.08234116977 | N8: [IE 05/2022]
A9: 3 | B9: Diesel Haushalte (ct/kWh) | C9: ct/kWh | D9: =D10/9.8*100 -> 11.63265306 | E9: =E10/9.8*100 -> 14.28571429 | F9: 15.81632653 | G9: 15.30612245 | H9: 15.30612245 | I9: 15.51020408 | J9: 15.81632653 | K9: 16.12244898 | L9: 0.3859649123 | M9: =($K9/$D9)^(1/$M$5)-1 -> 0.04773226771 | N9: Berechnet mit 1 l Diesel leicht entspricht 9,8 kWh
A10: 4 | B10: Diesel Haushalte (€/l) | C10: Euro/l | D10: 1.14 | E10: 1.4 | F10: 1.55 | G10: 1.5 | H10: 1.5 | I10: 1.52 | J10: 1.55 | K10: 1.58 | L10: 0.3859649123 | M10: 0.04773226771 | N10: [IE 05/2022]
A11: 5 | B11: Super Benzin Haushalte (ct/kWh) | C11: ct/kWh | D11: =D12/8.5*100 -> 15.29411765 | E11: 18.47058824 | F11: =F12/8.5*100 -> 20 | G11: =G12/8.5*100 -> 19.29411765 | H11: 19.29411765 | I11: 19.41176471 | J11: 19.64705882 | K11: =K12/8.5*100 -> 20 | L11: 0.3076923077 | M11: 0.03906724058 | N11: Berechnet mit 1 l Benzin entspricht 8,5 kWh https://www.energie-lexikon.info/benzin.html
A12: 6 | B12: Super Benzin Haushalte (€/l) | C12: Euro/l | D12: 1.3 | E12: 1.57 | F12: 1.7 | G12: 1.64 | H12: 1.64 | I12: 1.65 | J12: 1.67 | K12: 1.7 | L12: 0.3076923077 | M12: 0.03906724058 | N12: [IE 05/2022]
A13: 7 | B13: Erdgas Haushalte | C13: ct/kWh | D13: 5.95 | E13: 8.18 | F13: 17.71 | G13: 13.55 | H13: 11.33 | I13: 10.56 | J13: 10.14 | K13: 10.41 | L13: =$K13/$D13-1 -> 0.7495798319 | M13: 0.08319045254 | N13: [IE 05/2022] Abbildung 77
A14: 8 | B14: Erdgas Industrie | C14: ct/kWh | D14: 2.54 | E14: 2.35 | F14: 10.01 | G14: 6.29 | H14: 4.15 | I14: 3.23 | J14: 2.6 | K14: 2.54 | L14: 0 | M14: 0 | N14: [IE 05/2022] Abbildung 76
A15: 9 | B15: Strom Haushalte | C15: ct/kWh | D15: 31.39 | E15: 33.79 | F15: 46.93 | G15: 37.68 | H15: 33.52 | I15: 32.61 | J15: 32.51 | K15: 32.62 | L15: 0.03918445365 | M15: 0.00550599204 | N15: [IE 05/2022] Abbildung 82
A16: 10 | B16: Wärmepumpenstrom Haushalte | C16: ct/kWh | D16: 23.39 | E16: 24.48 | F16: 37.39 | G16: 27.94 | H16: 23.62 | I16: 22.54 | J16: 22.27 | K16: 22.21 | L16: -0.05044890979 | M16: -0.007367857941 | N16: [IE 05/2022] Abbildung 84
A17: 11 | B17: Nachtspeicher Haushalte | C17: ct/kWh | D17: 22.1 | E17: 23.34 | F17: 36.18 | G17: 26.7 | H17: 22.35 | I17: 21.24 | J17: 20.95 | K17: 20.86 | L17: -0.05610859729 | M17: -0.008215234563 | N17: [IE 05/2022] Abbildung 86
A18: 12 | B18: Holzpellets Haushalt (5t) | C18: ct/kWh | D18: 4.8828 | E18: 5.04 | F18: 5.04 | G18: 7 | H18: 7 | I18: 7 | J18: 7 | K18: 7 | L18: 0.43360367 | M18: 0.05280276016 | N18: interne Schätzung auf Basis von: Annahme 350 €/t, 5000 kWh/t, [DEPI 2023]
A19: 13 | B19: Hackschnitzel Haushalt | C19: ct/kWh | D19: 3.073 | E19: 3.194 | F19: 3.194 | G19: 4.04 | H19: 4.04 | I19: 4.04 | J19: 4.04 | K19: 4.04 | L19: 0.3146762122 | M19: 0.03985818587 | N19: interne Schätzung auf Basis von [DEPI 2023a]
A20: 14 | B20: Gewerbestrom | C20: ct/kWh | D20: 26.52 | E20: 26.79 | F20: 37.74 | G20: 29.92 | H20: 26.39 | I20: 25.59 | J20: 25.47 | K20: 25.53 | L20: -0.03733031674 | M20: =($K20/$D20)^(1/$M$5)-1 -> -0.00542024774 | N20: [IE 05/2022] Abbildung 88
A21: 15 | B21: Industrie KMU (100 und 500 MWh) | C21: ct/kWh | D21: 17.76 | E21: 21.38 | F21: 30.1 | G21: 22.18 | H21: 18.52 | I21: 17.6 | J21: 17.36 | K21: 17.3 | L21: =$K21/$D21-1 -> -0.0259009009 | M21: =($K21/$D21)^(1/$M$5)-1 -> -0.003741872547 | N21: [IE 05/2022] Abbildung 90
A22: 16 | B22: Energieintensiv (> 1 GWh/a) | C22: ct/kWh | D22: 6.088 | E22: 11.87 | F22: 22.628 | G22: 16.393 | H22: 12.673 | I22: 11.683 | J22: 11.372 | K22: 11.237 | L22: =$K22/$D22-1 -> 0.8457621551 | M22: =($K22/$D22)^(1/$M$5)-1 -> 0.09150343126 | N22: [IE 05/2022] Abbildung 92
B26: Heizöl leicht Anteil CO2-Preis | C26: Euro/l | D26: -- | E26: 0.066 | F26: 0.08 | G26: 0.093 | H26: 0.119 | I26: 0.146 | J26: 0.172 | K26: 0.199 | N26: [IE 05/2022] S. 119
B27: Diesel Haushalte Anteil CO2-Preis | C27: Euro/l | D27: -- | E27: 0.066 | F27: 0.08 | G27: 0.093 | H27: 0.119 | I27: 0.146 | J27: 0.172 | K27: 0.199 | N27: [IE 05/2022] S. 120
B28: Super Haushalte Anteil CO2-Preis | C28: Euro/l | D28: -- | E28: 0.059 | F28: 0.071 | G28: 0.083 | H28: 0.107 | I28: 0.13 | J28: 0.154 | K28: 0.178 | N28: [IE 05/2022] S. 120
B29: Erdgas Haushalte Anteil CO2-Preis | C29: Euro/kWh | D29: -- | E29: 0.005 | F29: 0.006 | G29: 0.007 | H29: 0.009 | I29: 0.011 | J29: 0.013 | K29: 0.015 | N29: [IE 05/2022] S. 124
B30: Erdgas Industrie Anteil CO2-Preis | C30: Euro/kWh | D30: -- | E30: 0.005 | F30: 0.006 | G30: 0.007 | H30: 0.009 | I30: 0.011 | J30: 0.013 | K30: 0.015 | N30: [IE 05/2022] S. 127
B31: CO2 Emissionszertifikate [BEHG] | C31: Euro/t CO2 | D31: 25 | E31: 25 | F31: 30 | G31: 35 | H31: 45 | I31: 55 | J31: 65 | K31: 75 | L31: =$K31/$D31-1 -> 2 | M31: =($K31/$D31)^(1/$M$5)-1 -> 0.1699308128 | N31: [BEHG 2022] | O31: CO2-Preise gemäß Bundesemissionshandelsgesetz (Brennstoffemissionshandelsgesetz vom 12. Dezember 2019 (BGBl. I S. 2728), das zuletzt durch Artikel 2 des Gesetzes vom 9. November 2022 (BGBl. I S. 2006) geändert worden ist); Annahme: Linear weiter steigend ab 2025

Sheet Projektkennzahlen-Cockpit (hidden)
A1: Kennzahl | B1: Ist | C1: Vorschlag optimaler Wert | D1: Wie nah am Optimum? | F1: Kommentar
A2: Interner Zinsfuß | B2: ='Eingabe Investitionsrechnung'!E50 -> 0.1822846038 | C2: 0.24 | D2: =B2/C2 -> 0.7595191825 | E2: =D2 -> 0.7595191825 | F2: Hoch = Gut, Hier 24% als gut
A3: ROI | B3: ='Eingabe Investitionsrechnung'!E51 -> 3.313291572 | C3: 4 | D3: =B3/C3 -> 0.8283228931 | E3: =D3 -> 0.8283228931 | F3: Hoch = Gut, Hier 4 als gut
A4: Break-Even-Koeffizient | B4: ='Eingabe Investitionsrechnung'!E52 -> 0.3514977749 | C4: 0.01 | D4: =IF(B4>1,"Projekt nicht rentabel",1-B4) -> 0.6485022251 | E4: 0.6485022251 | F4: Minumum 0,01 = super; Maximum 1= schlecht (rentiert sich erst zum Ende der betrachtungszeit)

Sheet NEU2023 Rendite_10Jahr_Bundeswe (hidden)
B1: BBSIS.M.I.ZAR.GD.EUR.S1311.B.A604.R10XX.R.A.A._Z._Z.A | C1: BBSIS.M.I.ZAR.GD.EUR.S1311.B.A604.R10XX.R.A.A._Z._Z.A_FLAGS
B2: Aus der Zinsstruktur abgeleitete Renditen für Bundeswertpapiere mit jährl. Kuponzahlungen / RLZ 10 Jahre / gleit. Durchschnitte
A3: Einheit | B3: Prozent
A4: Dimension | B4: Eins
A5: Stand vom | B5: 01.03.2023 10:27:19 Uhr
A6: 1983-01 | B6: 8.44
A7: 1983-02 | B7: 8.43
A8: 1983-03 | B8: 8.42
A9: 1983-04 | B9: 8.41
A10: 1983-05 | B10: 8.4
A11: 1983-06 | B11: 8.39
A12: 1983-07 | B12: 8.37
A13: 1983-08 | B13: 8.37
A14: 1983-09 | B14: 8.36
A15: 1983-10 | B15: 8.35
A16: 1983-11 | B16: 8.34
A17: 1983-12 | B17: 8.33
A18: 1984-01 | B18: 8.32
A19: 1984-02 | B19: 8.3
A20: 1984-03 | B20: 8.28
A21: 1984-04 | B21: 8.26
A22: 1984-05 | B22: 8.24
A23: 1984-06 | B23: 8.22
A24: 1984-07 | B24: 8.2
A25: 1984-08 | B25: 8.17
A26: 1984-09 | B26: 8.15
A27: 1984-10 | B27: 8.12
A28: 1984-11 | B28: 8.1
A29: 1984-12 | B29: 8.07
A30: 1985-01 | B30: 8.06
A31: 1985-02 | B31: 8.05
A32: 1985-03 | B32: 8.03
A33: 1985-04 | B33: 8.02
A34: 1985-05 | B34: 8.01
A35: 1985-06 | B35: 8
A36: 1985-07 | B36: 7.99
A37: 1985-08 | B37: 7.97
A38: 1985-09 | B38: 7.95
A39: 1985-10 | B39: 7.94
A40: 1985-11 | B40: 7.92
A41: 1985-12 | B41: 7.91
A42: 1986-01 | B42: 7.89
A43: 1986-02 | B43: 7.88
A44: 1986-03 | B44: 7.86
A45: 1986-04 | B45: 7.84
A46: 1986-05 | B46: 7.82
A47: 1986-06 | B47: 7.8
A48: 1986-07 | B48: 7.78
A49: 1986-08 | B49: 7.75
A50: 1986-09 | B50: 7.74
A51: 1986-10 | B51: 7.72
A52: 1986-11 | B52: 7.71
A53: 1986-12 | B53: 7.7
A54: 1987-01 | B54: 7.69
A55: 1987-02 | B55: 7.68
A56: 1987-03 | B56: 7.67
A57: 1987-04 | B57: 7.67
A58: 1987-05 | B58: 7.66
A59: 1987-06 | B59: 7.66
A60: 1987-07 | B60: 7.66
A61: 1987-08 | B61: 7.66
A62: 1987-09 | B62: 7.66
A63: 1987-10 | B63: 7.66
A64: 1987-11 | B64: 7.67
A65: 1987-12 | B65: 7.67
A66: 1988-01 | B66: 7.67
A67: 1988-02 | B67: 7.68
A68: 1988-03 | B68: 7.68
A69: 1988-04 | B69: 7.69
A70: 1988-05 | B70: 7.69
A71: 1988-06 | B71: 7.7
A72: 1988-07 | B72: 7.7
A73: 1988-08 | B73: 7.71
A74: 1988-09 | B74: 7.71
A75: 1988-10 | B75: 7.71
A76: 1988-11 | B76: 7.71
A77: 1988-12 | B77: 7.71
A78: 1989-01 | B78: 7.71
A79: 1989-02 | B79: 7.71
A80: 1989-03 | B80: 7.71
A81: 1989-04 | B81: 7.7
A82: 1989-05 | B82: 7.69
A83: 1989-06 | B83: 7.68
A84: 1989-07 | B84: 7.67
A85: 1989-08 | B85: 7.67
A86: 1989-09 | B86: 7.66
A87: 1989-10 | B87: 7.66
A88: 1989-11 | B88: 7.65
A89: 1989-12 | B89: 7.65
A90: 1990-01 | B90: 7.65
A91: 1990-02 | B91: 7.65
A92: 1990-03 | B92: 7.64
A93: 1990-04 | B93: 7.64
A94: 1990-05 | B94: 7.64
A95: 1990-06 | B95: 7.65
A96: 1990-07 | B96: 7.66
A97: 1990-08 | B97: 7.67
A98: 1990-09 | B98: 7.68
A99: 1990-10 | B99: 7.68
A100: 1990-11 | B100: 7.68
A101: 1990-12 | B101: 7.68
A102: 1991-01 | B102: 7.68
A103: 1991-02 | B103: 7.66
A104: 1991-03 | B104: 7.65
A105: 1991-04 | B105: 7.64
A106: 1991-05 | B106: 7.62
A107: 1991-06 | B107: 7.61
A108: 1991-07 | B108: 7.59
A109: 1991-08 | B109: 7.57
A110: 1991-09 | B110: 7.56
A111: 1991-10 | B111: 7.54
A112: 1991-11 | B112: 7.53
A113: 1991-12 | B113: 7.52
A114: 1992-01 | B114: 7.5
A115: 1992-02 | B115: 7.49
A116: 1992-03 | B116: 7.48
A117: 1992-04 | B117: 7.47
A118: 1992-05 | B118: 7.46
A119: 1992-06 | B119: 7.45
A120: 1992-07 | B120: 7.45
A121: 1992-08 | B121: 7.44
A122: 1992-09 | B122: 7.43
A123: 1992-10 | B123: 7.42
A124: 1992-11 | B124: 7.42
A125: 1992-12 | B125: 7.41
A126: 1993-01 | B126: 7.4
A127: 1993-02 | B127: 7.39
A128: 1993-03 | B128: 7.39
A129: 1993-04 | B129: 7.38
A130: 1993-05 | B130: 7.37
A131: 1993-06 | B131: 7.36
A132: 1993-07 | B132: 7.34
A133: 1993-08 | B133: 7.32
A134: 1993-09 | B134: 7.3
A135: 1993-10 | B135: 7.28
A136: 1993-11 | B136: 7.26
A137: 1993-12 | B137: 7.24
A138: 1994-01 | B138: 7.22
A139: 1994-02 | B139: 7.2
A140: 1994-03 | B140: 7.19
A141: 1994-04 | B141: 7.18
A142: 1994-05 | B142: 7.17
A143: 1994-06 | B143: 7.16
A144: 1994-07 | B144: 7.15
A145: 1994-08 | B145: 7.14
A146: 1994-09 | B146: 7.14
A147: 1994-10 | B147: 7.14
A148: 1994-11 | B148: 7.14
A149: 1994-12 | B149: 7.15
A150: 1995-01 | B150: 7.15
A151: 1995-02 | B151: 7.15
A152: 1995-03 | B152: 7.15
A153: 1995-04 | B153: 7.14
A154: 1995-05 | B154: 7.14
A155: 1995-06 | B155: 7.14
A156: 1995-07 | B156: 7.14
A157: 1995-08 | B157: 7.14
A158: 1995-09 | B158: 7.14
A159: 1995-10 | B159: 7.14
A160: 1995-11 | B160: 7.14
A161: 1995-12 | B161: 7.13
A162: 1996-01 | B162: 7.13
A163: 1996-02 | B163: 7.13
A164: 1996-03 | B164: 7.14
A165: 1996-04 | B165: 7.14
A166: 1996-05 | B166: 7.14
A167: 1996-06 | B167: 7.15
A168: 1996-07 | B168: 7.15
A169: 1996-08 | B169: 7.16
A170: 1996-09 | B170: 7.16
A171: 1996-10 | B171: 7.16
A172: 1996-11 | B172: 7.15
A173: 1996-12 | B173: 7.15
A174: 1997-01 | B174: 7.15
A175: 1997-02 | B175: 7.15
A176: 1997-03 | B176: 7.15
A177: 1997-04 | B177: 7.15
A178: 1997-05 | B178: 7.15
A179: 1997-06 | B179: 7.14
A180: 1997-07 | B180: 7.14
A181: 1997-08 | B181: 7.13
A182: 1997-09 | B182: 7.12
A183: 1997-10 | B183: 7.11
A184: 1997-11 | B184: 7.1
A185: 1997-12 | B185: 7.09
A186: 1998-01 | B186: 7.08
A187: 1998-02 | B187: 7.07
A188: 1998-03 | B188: 7.06
A189: 1998-04 | B189: 7.05
A190: 1998-05 | B190: 7.03
A191: 1998-06 | B191: 7.02
A192: 1998-07 | B192: 7
A193: 1998-08 | B193: 6.98
A194: 1998-09 | B194: 6.96
A195: 1998-10 | B195: 6.94
A196: 1998-11 | B196: 6.92
A197: 1998-12 | B197: 6.9
A198: 1999-01 | B198: 6.87
A199: 1999-02 | B199: 6.85
A200: 1999-03 | B200: 6.83
... 288 more rows

Sheet NEU2023 Zins_10Jahr_Bundeswertp (hidden)
B1: BBSIS.M.I.ZST.ZI.EUR.S1311.B.A604.R10XX.R.A.A._Z._Z.A | C1: BBSIS.M.I.ZST.ZI.EUR.S1311.B.A604.R10XX.R.A.A._Z._Z.A_FLAGS
B2: Zinsstrukturkurve (Svensson-Methode) / Börsennotierte Bundeswertpapiere / 10,0 Jahr(e) RLZ / Monatswerte
A3: Einheit | B3: Prozent
A4: Dimension | B4: Eins
A5: Stand vom | B5: 01.03.2023 10:28:04 Uhr
A6: 1972-09 | B6: 8.08
A7: 1972-10 | B7: 8.36
A8: 1972-11 | B8: 8.55
A9: 1972-12 | B9: 8.73
A10: 1973-01 | B10: 8.84
A11: 1973-02 | B11: 8.62
A12: 1973-03 | B12: 8.74
A13: 1973-04 | B13: 8.82
A14: 1973-05 | B14: 9.62
A15: 1973-06 | B15: 9.85
A16: 1973-07 | B16: 9.87
A17: 1973-08 | B17: 9.42
A18: 1973-09 | B18: 9.57
A19: 1973-10 | B19: 9.4
A20: 1973-11 | B20: 9.67
A21: 1973-12 | B21: 9.83
A22: 1974-01 | B22: 9.65
A23: 1974-02 | B23: 10.52
A24: 1974-03 | B24: 10.52
A25: 1974-04 | B25: 10.46
A26: 1974-05 | B26: 10.78
A27: 1974-06 | B27: 11.22
A28: 1974-07 | B28: 11.3
A29: 1974-08 | B29: 11.17
A30: 1974-09 | B30: 11.17
A31: 1974-10 | B31: 10.97
A32: 1974-11 | B32: 10.48
A33: 1974-12 | B33: 10.04
A34: 1975-01 | B34: 9.49
A35: 1975-02 | B35: 9.46
A36: 1975-03 | B36: 9.57
A37: 1975-04 | B37: 9.06
A38: 1975-05 | B38: 8.77
A39: 1975-06 | B39: 8.74
A40: 1975-07 | B40: 8.71
A41: 1975-08 | B41: 8.71
A42: 1975-09 | B42: 8.85
A43: 1975-10 | B43: 9.09
A44: 1975-11 | B44: 8.6
A45: 1975-12 | B45: 8.53
A46: 1976-01 | B46: 8.54
A47: 1976-02 | B47: 8.34
A48: 1976-03 | B48: 8.28
A49: 1976-04 | B49: 8.53
A50: 1976-05 | B50: 8.88
A51: 1976-06 | B51: 8.84
A52: 1976-07 | B52: 8.92
A53: 1976-08 | B53: 8.67
A54: 1976-09 | B54: 8.35
A55: 1976-10 | B55: 8.14
A56: 1976-11 | B56: 7.65
A57: 1976-12 | B57: 7.76
A58: 1977-01 | B58: 7.42
A59: 1977-02 | B59: 7.39
A60: 1977-03 | B60: 7.08
A61: 1977-04 | B61: 6.75
A62: 1977-05 | B62: 6.86
A63: 1977-06 | B63: 6.83
A64: 1977-07 | B64: 6.63
A65: 1977-08 | B65: 6.56
A66: 1977-09 | B66: 6.5
A67: 1977-10 | B67: 6.5
A68: 1977-11 | B68: 6.44
A69: 1977-12 | B69: 6.34
A70: 1978-01 | B70: 6.27
A71: 1978-02 | B71: 6.05
A72: 1978-03 | B72: 5.97
A73: 1978-04 | B73: 6.05
A74: 1978-05 | B74: 6.06
A75: 1978-06 | B75: 6.19
A76: 1978-07 | B76: 6.54
A77: 1978-08 | B77: 6.42
A78: 1978-09 | B78: 6.39
A79: 1978-10 | B79: 6.61
A80: 1978-11 | B80: 6.72
A81: 1978-12 | B81: 6.82
A82: 1979-01 | B82: 7.14
A83: 1979-02 | B83: 7.36
A84: 1979-03 | B84: 7.41
A85: 1979-04 | B85: 7.68
A86: 1979-05 | B86: 8.07
A87: 1979-06 | B87: 8.11
A88: 1979-07 | B88: 7.75
A89: 1979-08 | B89: 7.57
A90: 1979-09 | B90: 7.45
A91: 1979-10 | B91: 8.03
A92: 1979-11 | B92: 7.82
A93: 1979-12 | B93: 7.89
A94: 1980-01 | B94: 8.1
A95: 1980-02 | B95: 8.91
A96: 1980-03 | B96: 9.75
A97: 1980-04 | B97: 8.91
A98: 1980-05 | B98: 8.21
A99: 1980-06 | B99: 7.97
A100: 1980-07 | B100: 7.74
A101: 1980-08 | B101: 7.91
A102: 1980-09 | B102: 8.23
A103: 1980-10 | B103: 8.46
A104: 1980-11 | B104: 8.64
A105: 1980-12 | B105: 8.94
A106: 1981-01 | B106: 9.04
A107: 1981-02 | B107: 10.24
A108: 1981-03 | B108: 9.63
A109: 1981-04 | B109: 9.72
A110: 1981-05 | B110: 10.22
A111: 1981-06 | B111: 9.88
A112: 1981-07 | B112: 9.96
A113: 1981-08 | B113: 10.06
A114: 1981-09 | B114: 9.98
A115: 1981-10 | B115: 9.85
A116: 1981-11 | B116: 9.61
A117: 1981-12 | B117: 9.61
A118: 1982-01 | B118: 9.67
A119: 1982-02 | B119: 9.64
A120: 1982-03 | B120: 9.17
A121: 1982-04 | B121: 8.62
A122: 1982-05 | B122: 8.67
A123: 1982-06 | B123: 9.24
A124: 1982-07 | B124: 8.99
A125: 1982-08 | B125: 8.85
A126: 1982-09 | B126: 8.46
A127: 1982-10 | B127: 8.14
A128: 1982-11 | B128: 8.08
A129: 1982-12 | B129: 7.82
A130: 1983-01 | B130: 8.04
A131: 1983-02 | B131: 7.77
A132: 1983-03 | B132: 7.73
A133: 1983-04 | B133: 7.88
A134: 1983-05 | B134: 8.27
A135: 1983-06 | B135: 8.13
A136: 1983-07 | B136: 8.33
A137: 1983-08 | B137: 8.65
A138: 1983-09 | B138: 8.49
A139: 1983-10 | B139: 8.51
A140: 1983-11 | B140: 8.55
A141: 1983-12 | B141: 8.5
A142: 1984-01 | B142: 8.42
A143: 1984-02 | B143: 8.26
A144: 1984-03 | B144: 8.35
A145: 1984-04 | B145: 8.36
A146: 1984-05 | B146: 8.46
A147: 1984-06 | B147: 8.37
A148: 1984-07 | B148: 8.42
A149: 1984-08 | B149: 8.09
A150: 1984-09 | B150: 7.96
A151: 1984-10 | B151: 7.65
A152: 1984-11 | B152: 7.38
A153: 1984-12 | B153: 7.35
A154: 1985-01 | B154: 7.49
A155: 1985-02 | B155: 7.87
A156: 1985-03 | B156: 7.51
A157: 1985-04 | B157: 7.51
A158: 1985-05 | B158: 7.21
A159: 1985-06 | B159: 7.17
A160: 1985-07 | B160: 7.15
A161: 1985-08 | B161: 6.72
A162: 1985-09 | B162: 6.71
A163: 1985-10 | B163: 7.04
A164: 1985-11 | B164: 6.91
A165: 1985-12 | B165: 6.69
A166: 1986-01 | B166: 6.73
A167: 1986-02 | B167: 6.29
A168: 1986-03 | B168: 6.02
A169: 1986-04 | B169: 5.79
A170: 1986-05 | B170: 6.27
A171: 1986-06 | B171: 6.15
A172: 1986-07 | B172: 6.1
A173: 1986-08 | B173: 5.91
A174: 1986-09 | B174: 6.3
A175: 1986-10 | B175: 6.56
A176: 1986-11 | B176: 6.21
A177: 1986-12 | B177: 6.24
A178: 1987-01 | B178: 6.18
A179: 1987-02 | B179: 6.34
A180: 1987-03 | B180: 5.99
A181: 1987-04 | B181: 5.98
A182: 1987-05 | B182: 6
A183: 1987-06 | B183: 6.48
A184: 1987-07 | B184: 6.65
A185: 1987-08 | B185: 6.82
A186: 1987-09 | B186: 7.15
A187: 1987-10 | B187: 6.76
A188: 1987-11 | B188: 6.63
A189: 1987-12 | B189: 6.81
A190: 1988-01 | B190: 6.88
A191: 1988-02 | B191: 6.57
A192: 1988-03 | B192: 6.6
A193: 1988-04 | B193: 6.87
A194: 1988-05 | B194: 7.03
A195: 1988-06 | B195: 6.97
A196: 1988-07 | B196: 7.12
A197: 1988-08 | B197: 7.03
A198: 1988-09 | B198: 6.78
A199: 1988-10 | B199: 6.5
A200: 1988-11 | B200: 6.7
... 411 more rows

Sheet NEU2023 Destatis Inflation (hidden)
A1: Verbraucherpreisindex: Deutschland, Jahre
A2: Verbraucherpreisindex für Deutschland
A3: Deutschland
A4: Jahr | B4: Verbraucherpreisindex | C4: Veränderung zum Vorjahr
B5: 2020=100 | C5: in (%)
A6: 1991 | B6: 61.9 | C6: .
A7: 1992 | B7: 65 | C7: 5
A8: 1993 | B8: 67.9 | C8: 4.5
A9: 1994 | B9: 69.7 | C9: 2.7
A10: 1995 | B10: 71 | C10: 1.9
A11: 1996 | B11: 72 | C11: 1.4
A12: 1997 | B12: 73.4 | C12: 1.9
A13: 1998 | B13: 74 | C13: 0.8
A14: 1999 | B14: 74.5 | C14: 0.7
A15: 2000 | B15: 75.5 | C15: 1.3
A16: 2001 | B16: 77 | C16: 2
A17: 2002 | B17: 78.1 | C17: 1.4
A18: 2003 | B18: 78.9 | C18: 1
A19: 2004 | B19: 80.2 | C19: 1.6
A20: 2005 | B20: 81.5 | C20: 1.6
A21: 2006 | B21: 82.8 | C21: 1.6
A22: 2007 | B22: 84.7 | C22: 2.3
A23: 2008 | B23: 86.9 | C23: 2.6
A24: 2009 | B24: 87.2 | C24: 0.3
A25: 2010 | B25: 88.1 | C25: 1
A26: 2011 | B26: 90 | C26: 2.2
A27: 2012 | B27: 91.7 | C27: 1.9
A28: 2013 | B28: 93.1 | C28: 1.5
A29: 2014 | B29: 94 | C29: 1
A30: 2015 | B30: 94.5 | C30: 0.5
A31: 2016 | B31: 95 | C31: 0.5
A32: 2017 | B32: 96.4 | C32: 1.5
A33: 2018 | B33: 98.1 | C33: 1.8
A34: 2019 | B34: 99.5 | C34: 1.4
A35: 2020 | B35: 100 | C35: 0.5
A36: 2021 | B36: 103.1 | C36: 3.1
A37: 2022 | B37: 110.2 | C37: 6.9
A38: ______________
A40: © Statistisches Bundesamt (Destatis), 2023 | Stand: 16.03.2023 / 15:37:53
A41: Basis für Forecast
A42: Mittelwert seit 2012 | C42: =AVERAGE(C27:C37)/100 -> 0.01872727273
A43: Median seit 2012 | C43: =MEDIAN(C27:C37)/100 -> 0.015

Sheet NEU2023 FK_bis_5Jahre (hidden)
B1: BBK01.SUD125 | C1: BBK01.SUD125_FLAGS
B2: Effektivzinssätze Banken DE / Neugeschäft / Kredite an nichtfinanzielle Kapitalgesellschaften bis 1 Mio EUR, anfängliche Zinsbindung über 1 bis 5 Jahre
A3: Einheit | B3: % p.a.
A4: Dimension | B4: Eins
A5: Stand vom | B5: 03.03.2023 08:12:48 Uhr
A6: 2003-01 | B6: 5.29
A7: 2003-02 | B7: 5.28
A8: 2003-03 | B8: 5.27
A9: 2003-04 | B9: 5.18
A10: 2003-05 | B10: 5.11
A11: 2003-06 | B11: 4.94
A12: 2003-07 | B12: 4.88
A13: 2003-08 | B13: 4.91
A14: 2003-09 | B14: 5
A15: 2003-10 | B15: 4.99
A16: 2003-11 | B16: 5.2
A17: 2003-12 | B17: 5.05
A18: 2004-01 | B18: 5.13
A19: 2004-02 | B19: 5.12
A20: 2004-03 | B20: 5
A21: 2004-04 | B21: 4.89
A22: 2004-05 | B22: 5
A23: 2004-06 | B23: 4.98
A24: 2004-07 | B24: 5.01
A25: 2004-08 | B25: 5.08
A26: 2004-09 | B26: 4.92
A27: 2004-10 | B27: 4.96
A28: 2004-11 | B28: 4.83
A29: 2004-12 | B29: 4.75
A30: 2005-01 | B30: 4.82
A31: 2005-02 | B31: 4.84
A32: 2005-03 | B32: 4.67
A33: 2005-04 | B33: 4.64
A34: 2005-05 | B34: 4.56
A35: 2005-06 | B35: 4.5
A36: 2005-07 | B36: 4.54
A37: 2005-08 | B37: 4.54
A38: 2005-09 | B38: 4.46
A39: 2005-10 | B39: 4.45
A40: 2005-11 | B40: 4.54
A41: 2005-12 | B41: 4.61
A42: 2006-01 | B42: 4.74
A43: 2006-02 | B43: 4.8
A44: 2006-03 | B44: 4.82
A45: 2006-04 | B45: 4.98
A46: 2006-05 | B46: 5.08
A47: 2006-06 | B47: 5
A48: 2006-07 | B48: 5.14
A49: 2006-08 | B49: 5.25
A50: 2006-09 | B50: 5.09
A51: 2006-10 | B51: 5.11
A52: 2006-11 | B52: 5.16
A53: 2006-12 | B53: 5.21
A54: 2007-01 | B54: 5.25
A55: 2007-02 | B55: 5.44
A56: 2007-03 | B56: 5.42
A57: 2007-04 | B57: 5.46
A58: 2007-05 | B58: 5.53
A59: 2007-06 | B59: 5.67
A60: 2007-07 | B60: 5.75
A61: 2007-08 | B61: 5.83
A62: 2007-09 | B62: 5.89
A63: 2007-10 | B63: 5.79
A64: 2007-11 | B64: 5.71
A65: 2007-12 | B65: 5.8
A66: 2008-01 | B66: 5.74
A67: 2008-02 | B67: 5.72
A68: 2008-03 | B68: 5.65
A69: 2008-04 | B69: 5.65
A70: 2008-05 | B70: 5.81
A71: 2008-06 | B71: 5.97
A72: 2008-07 | B72: 6.18
A73: 2008-08 | B73: 6.27
A74: 2008-09 | B74: 6.12
A75: 2008-10 | B75: 5.96
A76: 2008-11 | B76: 5.78
A77: 2008-12 | B77: 5.61
A78: 2009-01 | B78: 5.31
A79: 2009-02 | B79: 5.12
A80: 2009-03 | B80: 4.95
A81: 2009-04 | B81: 4.85
A82: 2009-05 | B82: 4.83
A83: 2009-06 | B83: 4.82
A84: 2009-07 | B84: 4.73
A85: 2009-08 | B85: 4.8
A86: 2009-09 | B86: 4.72
A87: 2009-10 | B87: 4.54
A88: 2009-11 | B88: 4.7
A89: 2009-12 | B89: 4.23
A90: 2010-01 | B90: 4.54
A91: 2010-02 | B91: 4.63
A92: 2010-03 | B92: 4.7
A93: 2010-04 | B93: 4.52
A94: 2010-05 | B94: 4.52
A95: 2010-06 | B95: 4.44 | C95: Bemerkung
A96: 2010-07 | B96: 4.31
A97: 2010-08 | B97: 4.32
A98: 2010-09 | B98: 4.33
A99: 2010-10 | B99: 4.2
A100: 2010-11 | B100: 4.21
A101: 2010-12 | B101: 4.2
A102: 2011-01 | B102: 4.24
A103: 2011-02 | B103: 4.45
A104: 2011-03 | B104: 4.5
A105: 2011-04 | B105: 4.59
A106: 2011-05 | B106: 4.7
A107: 2011-06 | B107: 4.63
A108: 2011-07 | B108: 4.66
A109: 2011-08 | B109: 4.73
A110: 2011-09 | B110: 4.6
A111: 2011-10 | B111: 4.58
A112: 2011-11 | B112: 4.69
A113: 2011-12 | B113: 4.61
A114: 2012-01 | B114: 4.46
A115: 2012-02 | B115: 4.38
A116: 2012-03 | B116: 4.28
A117: 2012-04 | B117: 4.18
A118: 2012-05 | B118: 4.17
A119: 2012-06 | B119: 4.12
A120: 2012-07 | B120: 4.03
A121: 2012-08 | B121: 3.82
A122: 2012-09 | B122: 3.79
A123: 2012-10 | B123: 3.71
A124: 2012-11 | B124: 3.66
A125: 2012-12 | B125: 3.66
A126: 2013-01 | B126: 3.5
A127: 2013-02 | B127: 3.57
A128: 2013-03 | B128: 3.59
A129: 2013-04 | B129: 3.5
A130: 2013-05 | B130: 3.51
A131: 2013-06 | B131: 3.63
A132: 2013-07 | B132: 3.56
A133: 2013-08 | B133: 3.71
A134: 2013-09 | B134: 3.69
A135: 2013-10 | B135: 3.61
A136: 2013-11 | B136: 3.74
A137: 2013-12 | B137: 3.66
A138: 2014-01 | B138: 3.49
A139: 2014-02 | B139: 3.69
A140: 2014-03 | B140: 3.53
A141: 2014-04 | B141: 3.57
A142: 2014-05 | B142: 3.68
A143: 2014-06 | B143: 3.64
A144: 2014-07 | B144: 3.36
A145: 2014-08 | B145: 3.28
A146: 2014-09 | B146: 3.27
A147: 2014-10 | B147: 3.19
A148: 2014-11 | B148: 3.18
A149: 2014-12 | B149: 3.01
A150: 2015-01 | B150: 3.09
A151: 2015-02 | B151: 3.04
A152: 2015-03 | B152: 2.94
A153: 2015-04 | B153: 3
A154: 2015-05 | B154: 2.91
A155: 2015-06 | B155: 2.87
A156: 2015-07 | B156: 2.91
A157: 2015-08 | B157: 2.99
A158: 2015-09 | B158: 2.91
A159: 2015-10 | B159: 2.89
A160: 2015-11 | B160: 2.91
A161: 2015-12 | B161: 2.9
A162: 2016-01 | B162: 2.87
A163: 2016-02 | B163: 2.78
A164: 2016-03 | B164: 2.73
A165: 2016-04 | B165: 2.74
A166: 2016-05 | B166: 2.73
A167: 2016-06 | B167: 2.79
A168: 2016-07 | B168: 2.67
A169: 2016-08 | B169: 2.62
A170: 2016-09 | B170: 2.63
A171: 2016-10 | B171: 2.63
A172: 2016-11 | B172: 2.64
A173: 2016-12 | B173: 2.57
A174: 2017-01 | B174: 2.6
A175: 2017-02 | B175: 2.58
A176: 2017-03 | B176: 2.59
A177: 2017-04 | B177: 2.54
A178: 2017-05 | B178: 2.58
A179: 2017-06 | B179: 2.57
A180: 2017-07 | B180: 2.57
A181: 2017-08 | B181: 2.58
A182: 2017-09 | B182: 2.6
A183: 2017-10 | B183: 2.59
A184: 2017-11 | B184: 2.57
A185: 2017-12 | B185: 2.55
A186: 2018-01 | B186: 2.53
A187: 2018-02 | B187: 2.57
A188: 2018-03 | B188: 2.52
A189: 2018-04 | B189: 2.54
A190: 2018-05 | B190: 2.4
A191: 2018-06 | B191: 2.44
A192: 2018-07 | B192: 2.41
A193: 2018-08 | B193: 2.44
A194: 2018-09 | B194: 2.49
A195: 2018-10 | B195: 2.5
A196: 2018-11 | B196: 2.46
A197: 2018-12 | B197: 2.4
A198: 2019-01 | B198: 2.43
A199: 2019-02 | B199: 2.51
A200: 2019-03 | B200: 2.56
... 48 more rows
